{"text_format":"1","workbook":"xlsx","n_sheets":32,"sheets":["目次","1.オンライン","2.指定店指定","3.貸付先コードの新設等","4①.金利設定","4②.金利設定（付表・選択シート）","4③.金利設定（付表・提出シート）","5.事業計画変更","6.期日延長","7.不用額報告","8.借用証書の提出方法変更依頼書","9.口座異動","10.名称等変更","11.団体変更通知","13.借入申込書確認シート","14①.長期申込（固定金利）","14②.長期申込（利率見直し）","16.起債対象外事業費等確認調書","17.完成遅延理由書兼完成報告書","21.特定納付利用届出","22.違約金免除","23.取得財産等","24.処分行為報告書","25.処分行為承認申請書","26.国庫支出金等交付決定申出書","27.過充当報告書・申出書","28.補償金条項追加","29.繰上償還承認申請","30.指定店変更","31.債務承継申請","32①.債務承継通知（甲）","32②.債務承継通知（乙）"],"not_rendered":{"charts":0,"images":1,"macros":0,"external_links":1,"defined_names":46,"comments":1,"pivot_tables":0},"unopened":[],"bounds":{"document_bytes":16777216,"sheet_cells":100000,"rows_first":2000,"rows_last":500,"rows_between":2000,"halvings":0,"cell_chars":16384,"cell_head_chars":4096},"cells_cut":0,"cells_raw":0,"read":"whole","date_system":"1900"}

{"sheet":"目次","index":0,"n_rows":44,"n_cols":3,"rows_kept":44,"cut":false,"hidden":false,"merged":[[1,1,1,2],[2,1,2,2]]}
[]
[null,"「財政融資資金地方資金借入等の手引」様式集"]
[null,"（地方公共団体担当者向け）"]
[]
[null,"令和８年１月版「財政融資資金地方資金借入等の手引【資料編】」に掲載されている様式"]
[null,"をエクセルで作成していますのでご活用ください。"]
[]
[null,"例示","書式名"]
[null,"第１章　財政融資資金の概要"]
[null,"例示1","財政融資資金事務オンラインシステム利用承認申請書"]
[null,"第２章　借入前の手続等"]
[null,"例示2","財政融資資金指定店指定申請書"]
[null,"例示3","貸付先コードの新設・廃止について"]
[null,"例示4①","財政融資資金地方長期資金等借入金利設定(変更)申込書"]
[null,"例示4②","　　　　　　　　　　〃　　　　　　　　　　　　　　　　（付表）※提出不要"]
[null,"例示4③","　　　　　　　　　　〃　　　　　　　　　　　　　　　　（付表）※提出用"]
[null,"例示5","事業計画変更承認申請書"]
[null,"例示6","財政融資資金地方長期資金等貸付期日延長承認申請書"]
[null,"例示7","財政融資資金地方長期資金等貸付予定額不用額報告書"]
[null,"例示8","財政融資資金借用証書の提出方法変更依頼書"]
[null,"例示9","振込口座異動通知書"]
[null,"例示10","名称等変更通知書"]
[null,"例示11","地方公共団体変更通知書"]
[null,"第３章　借入申込みの手続等"]
[null,"例示13","財政融資資金借入申込書作成にあたっての確認シート"]
[null,"例示14①","財政融資資金地方長期資金等借入申込書（固定金利方式）　"]
[null,"例示14②","　　　　　　　　　　〃　　　　　　　（利率見直し方式）　　　"]
[null,"例示15","事業実施状況等調書　※別ファイル"]
[null,"例示16","起債対象外事業費等に関する確認調書"]
[null,"例示17","事業完成遅延理由書兼事業完成報告書"]
[null,"第４章　借入後の手続等"]
[null,"例示21","財政融資資金の元金の償還及び利子等の支払いに関する特定納付利用届出\n（届出取消）書"]
[null,"例示22","災害等に係る違約金免除承認申請書"]
[null,"例示23","取得財産等に関する資料"]
[null,"例示24","補助金等適正化法第２２条の規定に基づく各省各庁の長の承認を受けた施設\n等における財政融資資金地方資金に係る取得財産等の処分行為報告書"]
[null,"例示25","財政融資資金に係る取得財産等の処分行為承認申請書"]
[null,"例示26","国庫支出金等交付決定申出書"]
[null,"例示27","財政融資資金に係る過充当報告書・申出書"]
[null,"例示28","財政融資資金普通地方長期資金等借用証書補償金条項追加承認申請書"]
[null,"例示29","財政融資資金借入金繰上償還承認申請書"]
[null,"例示30","財政融資資金指定店変更承認申請書"]
[null,"例示31","財政融資資金債務承継承認申請書"]
[null,"例示32①","財政融資資金債務承継通知書（旧地方公共団体が消滅又は解散した場合）"]
[null,"例示32②","財政融資資金債務承継通知書（旧地方公共団体が存続する場合）"]

{"sheet":"1.オンライン","index":1,"n_rows":53,"n_cols":59,"rows_kept":53,"cut":false,"hidden":false,"merged":[[0,34,0,35],[11,21,11,30],[12,21,12,30],[1,25,1,32],[43,3,43,30],[45,3,45,30],[47,3,49,30],[1,58,1,65],[21,1,21,32],[15,1,15,32],[2,25,2,32]]}
[]
[null,null,null,null,null,null,null,null,null,null,null,null,null,null,null,null,null,null,null,null,null,null,null,null,null,"第　　　　号",null,null,null,null,null,null,null,null,null,null,null,null,null,null,null,null,null,null,null,null,null,null,null,null,null,null,null,null,null,null,null,null,"　　　　年　　月　　日"]
[null,null,null,null,null,null,null,null,null,null,null,null,null,null,null,null,null,null,null,null,null,null,null,null,null,"　　　　年　　月　　日"]
[null,null,null,null,null,null,null,null,null,null,null,null,null,null,null,null,null,null,null,null,null,null,null,null,null,null,null,null,null,null,null,null,null,null,null,null,null,null,null,null,null,null,null,null,null,null,null,null,"（貸付先コード）"]
[null,"財　務　大　臣　　殿"]
[null,null,null,null,null,null,null,null,null,null,null,null,null,null,null,null,null,null,null,null,null,null,null,null,null,null,null,null,null,null,null,null,null,null,null,null,null,null,null,null,null,null,null,null,null,null,null,null,"（地方公共団体名）"]
[null,null,null,null,null,null,null,null,null,null,null,null,null,null,"（貸付先コード）"]
[]
[null,null,null,null,null,null,null,null,null,null,null,null,null,null,"（地方公共団体名）"]
[]
[]
[null,null,null,null,null,null,null,null,null,null,null,null,null,null,"（代表者の職　　氏 名）",null,null,null,null,null,null,null,null,null,null,null,null,null,null,null,null,null,null,null,null,"４","担当者②",null,null,null,"（役職）"]
[]
[]
[null,null,null,null,null,null,null,null,null,null,null,null,null,null,null,null,null,null,null,null,null,null,null,null,null,null,null,null,null,null,null,null,null,null,null,null,null,null,null,null,"（氏名）"]
[null,"財政融資資金事務オンラインシステム利用承認申請書"]
[null,null,null,null,null,null,null,null,null,null,null,null,null,null,null,null,null,null,null,null,null,null,null,null,null,null,null,null,null,null,null,null,null,null,null,null,null,null,null,null,"（電話番号）"]
[]
[null,null,null,"標記のことについて、下記のとおり申請します。",null,null,null,null,null,null,null,null,null,null,null,null,null,null,null,null,null,null,null,null,null,null,null,null,null,null,null,null,null,null,null,null,null,null,null,null,"（FAX番号）"]
[]
[null,null,null,null,null,null,null,null,null,null,null,null,null,null,null,null,null,null,null,null,null,null,null,null,null,null,null,null,null,null,null,null,null,null,null,null,null,null,null,null,"（メールアドレス）"]
[null,"記"]
[]
[null,"１","代表者",null,null,null,"（氏名）"]
[]
[null,"２","代表者の職"]
[null,null,null,null,null,null,null,null,null,null,null,null,null,null,null,null,null,null,null,null,null,null,null,null,null,null,null,null,null,null,null,null,null,null,null,null,"担当者③",null,null,null,"（役職）"]
[null,"３","代表電話番号"]
[]
[null,"４","担当者①",null,null,null,"（役職）",null,null,null,null,null,null,null,null,null,null,null,null,null,null,null,null,null,null,null,null,null,null,null,null,null,null,null,null,null,null,null,null,null,"（氏名）"]
[]
[null,null,null,null,null,null,null,null,null,null,null,null,null,null,null,null,null,null,null,null,null,null,null,null,null,null,null,null,null,null,null,null,null,null,null,null,null,null,null,null,"（電話番号）"]
[null,null,null,null,null,null,"（氏名）"]
[null,null,null,null,null,null,null,null,null,null,null,null,null,null,null,null,null,null,null,null,null,null,null,null,null,null,null,null,null,null,null,null,null,null,null,null,null,null,null,null,"（FAX番号）"]
[null,null,null,null,null,null,"（電話番号）"]
[null,null,null,null,null,null,null,null,null,null,null,null,null,null,null,null,null,null,null,null,null,null,null,null,null,null,null,null,null,null,null,null,null,null,null,null,null,null,null,null,"（メールアドレス）"]
[null,null,null,null,null,null,"（FAX番号）"]
[]
[null,null,null,null,null,null,"（メールアドレス）"]
[]
[]
[]
[null," 備　考"]
[null,null,"１"," 用紙の大きさは、各片とも日本産業規格Ａ列４とする。"]
[]
[null,null,"２"," 本申請書の提出にあたり、ＬＧＷＡＮまたはインターネット回線に接続できる環境にあること。"]
[]
[null,null,"３"," オンラインシステムを利用して借入申込等で借用証書を提出する際は、地方公共団体における組織認証基盤（LGPKI）の認証局、政府認証基盤（GPKI)と相互認証された認証機関（電子認証登記所(商業登記認証局) 等）または指定の民間認証局発行の証明書が必要である。"]
[]
[]
[]
[null,null,"４　担当者の登録は１団体につき合計で３人まで可能なことから、２人以上登録される場合は　"]
[null,null," ","第２片の担当者②・③に記入すること。"]

{"sheet":"2.指定店指定","index":2,"n_rows":35,"n_cols":27,"rows_kept":35,"cut":false,"hidden":false,"merged":[[4,1,4,6],[10,5,10,22],[4,7,4,8],[12,23,12,27],[34,1,34,3],[34,6,34,20],[12,18,12,22],[12,2,12,17]]}
[]
[null,null,null,null,null,null,null,null,null,null,null,null,null,null,null,null,null,null,null,null,null,null,null,null,null,null,"第　　　　　 号"]
[null,null,null,null,null,null,null,null,null,null,null,null,null,null,null,null,null,null,null,null,null,null,null,null,null,null,"年　　月　　日"]
[]
[null,"財  務  大  臣",null,null,null,null,null,"殿"]
[]
[null,null,null,null,null,null,null,null,null,null,null,null,null,null,null,null,"（地方公共団体名）"]
[]
[null,null,null,null,null,null,null,null,null,null,null,null,null,null,null,null,"（代表者の職　 　氏   名 ）"]
[]
[null,null,null,null,null,"財政融資資金指定店指定申請書"]
[]
[null,null,"　財政融資資金の授受に係る指定店を日本銀行",null,null,null,null,null,null,null,null,null,null,null,null,null,null,null,null,null,null,null,null,"店としたい"]
[null,null,"ので、指定願いたく申請します。"]
[]
[]
[]
[]
[]
[]
[]
[]
[]
[]
[]
[]
[]
[]
[]
[]
[]
[]
[]
[]
[null,"備考",null,null,null,null,"用紙の大きさは、日本産業規格Ａ列４とする。"]

{"sheet":"3.貸付先コードの新設等","index":3,"n_rows":26,"n_cols":7,"rows_kept":26,"cut":false,"hidden":false,"merged":[[26,0,31,7],[23,0,23,1],[23,2,23,3],[23,4,23,5],[23,6,23,7],[13,2,13,5],[22,6,22,7],[17,0,17,7],[5,0,5,2],[20,3,20,4],[22,0,22,1],[22,2,22,3],[22,4,22,5]]}
[null,null,null,null,null,"　　　　第　　　　　号"]
[null,null,null,null,null,"　　　　年　　月　　日"]
[]
[]
[]
["　　北 陸 財 務 局 長　　殿"]
[]
[]
[null,null,null,null,"（地方公共団体名）"]
[null,null,null,null,"（代表者の職　　 氏　　名 ）"]
[]
[]
[]
[null,null,"貸付先コ－ドの新設・廃止について"]
[]
[]
[]
["標記のことについて、下記のとおり新設・廃止願います。"]
[]
[]
[null,null,null,"記"]
[]
["会　　計　　名",null,"貸付先コードの名称",null,"貸付先コード",null,"新設・廃止の別"]
[]
[]
["（理由）"]

{"sheet":"4①.金利設定","index":4,"n_rows":34,"n_cols":14,"rows_kept":34,"cut":false,"hidden":false,"merged":[[21,16,22,16],[13,1,13,15],[15,4,15,15],[19,2,20,8],[19,11,20,15],[21,2,22,8],[21,11,22,15],[17,1,17,15]]}
[]
[null,null,null,null,null,null,null,null,null,null,null,null,null,"　　　　　　○○○ 第           号"]
[]
[null,null,null,null,null,null,null,null,null,null,null,null,null,"　　　　　　　　　　年    月    日"]
[]
[null,"財 務 大 臣   殿"]
[]
[null,null,null,null,null,null,null,null,null,null,null," （地方公共団体名）　　○○県○○市"]
[]
[null,null,null,null,null,null,null,null,null,null,null," （代表者の職氏名）　　○○市長"]
[]
[]
[]
[null,"財政融資資金地方長期資金等借入金利設定（変更）申込書"]
[]
[null,null,null,null,"財政融資資金の借入れに際しては、下記条件により借り入れることを申し込みます。"]
[]
[null,"記"]
[]
[null,null,"借入金の金利方式の選択",null,null,null,null,null,null,null,null,"付表より事業名毎に金利方式を選択"]
[]
[null,null,"適用開始年度",null,null,null,null,null,null,null,null,"「○」年度以降に貸付予定額の決定を受けた資金の借入れから適用"]
[]
[]
[null,null,"備考"]
[null,null,null,null,null,"１",null,"用紙の大きさは、日本産業規格Ａ列４とする。"]
[]
[null,null,null,null,null,"２",null,"本申込書は、地方公共団体毎に提出するものとする。"]
[]
[null,null,null,null,null,"３",null,"金利設定を新規に申し込んだ翌年度以降は、金利方式に変更が生じない"]
[null,null,null,null,null,null,"限り提出を要しない。"]
[]
[null,null,null,null,null,"４",null,"本申込書の提出に際しては、表題を新規申込み又は変更申込みに応じ、"]
[null,null,null,null,null,null,"修正すること。"]

{"sheet":"4②.金利設定（付表・選択シート）","index":5,"n_rows":50,"n_cols":11,"rows_kept":50,"cut":false,"hidden":false,"merged":[[48,2,48,5],[49,2,49,5],[5,2,7,2],[5,3,7,3],[5,4,7,4],[5,5,7,5],[44,2,44,5],[45,2,45,5]]}
[]
[]
[null,null,"事業毎の金利選択"]
[]
[]
[null,null,"事  業  名","金利方式\n↓（プルダウンにて選択）↓","最長償還期限\n（固定）","最長償還期限\n（利率見直し）"]
[]
[]
[null,null,"Ⅰ 一般会計債"]
[null,null," １ 公共事業等",null,25,25]
[null,null," ２ 防災・減災・国土強靭化緊急対策事業",null,25,25]
[null,null," ３ 公営住宅建設事業",null,30,30,"※１",null,"該当なし"]
[null,null," ４ 災害復旧事業",null,40,40,"※２",null,"固定金利方式"]
[null,null," ５ 学校教育施設等",null,25,25]
[null,null," ６ 社会福祉施設",null,25,25]
[null,null," ７ 一般廃棄物処理",null,20,20,null,5,"５年毎金利見直し方式"]
[null,null," ８ 一般補助施設等",null,25,25,null,10,"１０年毎金利見直し方式"]
[null,null,"(うち、特別転貸債\n（下段に転貸先を記入し選択）)",null,null,null,null,15,"１５年毎金利見直し方式"]
[null,null,null,null,{"$f":"IF(C19=\"\",\"\",VLOOKUP(C19,I$23:J$27,2,FALSE))","v":""},{"$f":"IF(C19=\"\",\"\",VLOOKUP(C19,I$23:K$27,3,FALSE))","v":""},null,20,"２０年後金利見直し方式"]
[null,null,null,null,{"$f":"IF(C20=\"\",\"\",VLOOKUP(C20,I$23:J$27,2,FALSE))","v":""},{"$f":"IF(C20=\"\",\"\",VLOOKUP(C20,I$23:K$27,3,FALSE))","v":""},null,30,"３０年後金利見直し方式"]
[null,null," ９ 防災対策",null,30,30]
[null,null," 10 公共施設等適正管理",null,30,30,null,null,"　　外貿埠頭会社等転貸分",20,20]
[null,null," 11 緊急自然災害防止対策事業",null,30,30,null,null,"　　外貿埠頭会社等転貸分",20,20]
[null,null," 12 辺地対策",null,10,30,null,null,"　　港湾運営会社転貸分",20,20]
[null,null," 13 過疎対策",null,12,30,null,null,"　　指定都市高速道路会社転貸分",20,20]
[null,null,"Ⅱ 公営企業債",null,null,null,null,null,"　　空港周辺支援整備機構転貸分",10,10]
[null,null," １ 水道事業（上水道事業）",null,40,40,null,null,"　　奄美群島振興開発基金転貸分",10,10]
[null,null," ２ 水道事業（簡易水道事業）",null,40,40]
[null,null," ３ 交通事業（都市高速鉄道事業）",null,40,40]
[null,null," ４ 交通事業（一般交通事業）",null,20,30]
[null,null," ５ 港湾整備事業",null,40,40]
[null,null," ６ 病院事業",null,30,30]
[null,null," ７ 下水道事業",null,40,40]
[null,null,"Ⅲ　臨時財政対策債",null,"-",20]
[null,null,"Ⅳ　再生振替特例債",null,30,30]
[]
[]
[]
[]
[]
[]
[]
[null,null,"【注意】"]
[null,null,"１．金利方式の選択について"]
[null,null,"　①　臨時財政対策債については、利率見直し方式（5年毎・10年毎に限る。）のみに限ります。"]
[null,null,"　②　１回目の利率見直しまでの期間が固定金利の最長償還期限よりも長い利率見直し方式を選択するこ\n　　とはできません。例えば、辺地対策事業及び過疎対策事業については15年毎・20年後・30年後の利率\n　　見直し方式を選択することはできません。（個別の貸付けにおいて、実際の償還期限が事業毎に選択\n　　した１回目の利率見直しまでの期間より短い場合には、利率の見直しは行われません。）"]
[]
[null,null,"２．その他"]
[null,null,"　①　新規設定の場合、借入れを予定していない場合であっても全事業について選択します。ただし、都\n　　道府県における辺地対策事業のように、明らかに実施しない事業については「該当なし」を選択して\n　　ください。"]
[null,null,"　②　東日本大震災復興特別会計予算に係る国庫支出金を受けて事業を実施する場合に発行する一般補助\n　　施設整備等事業については、建設される施設（事業）により分類された償還期限が適用されます。\n\n"]

{"sheet":"4③.金利設定（付表・提出シート）","index":6,"n_rows":35,"n_cols":9,"rows_kept":35,"cut":false,"hidden":false,"merged":[[5,2,7,2],[5,3,5,8],[6,3,7,3],[6,4,6,8]]}
[null,"付表"]
[]
[null,null,"事業毎の金利選択一覧"]
[]
[]
[null,null,"事  業  名","借入金の金利方式の選択"]
[null,null,null,"固定金利方式","利率見直し方式"]
[null,null,null,null," ５年毎","１０年毎","１５年毎","２０年後","３０年後"]
[null,null,"Ⅰ 一般会計債"]
[null,null," １ 公共事業等",{"$f":"IF('4②.金利設定（付表・選択シート）'!D10='4②.金利設定（付表・選択シート）'!I$12,\"該当なし\",IF('4②.金利設定（付表・選択シート）'!D10='4②.金利設定（付表・選択シート）'!I$13,\"○\",\"\"))","v":""},{"$f":"IF('4②.金利設定（付表・選択シート）'!D10='4②.金利設定（付表・選択シート）'!I$16,\"○\",\"\")","v":""},{"$f":"IF('4②.金利設定（付表・選択シート）'!D10='4②.金利設定（付表・選択シート）'!I$17,\"○\",\"\")","v":""},{"$f":"IF('4②.金利設定（付表・選択シート）'!D10='4②.金利設定（付表・選択シート）'!I$18,\"○\",\"\")","v":""},{"$f":"IF('4②.金利設定（付表・選択シート）'!D10='4②.金利設定（付表・選択シート）'!I$19,\"○\",\"\")","v":""},{"$f":"IF('4②.金利設定（付表・選択シート）'!D10='4②.金利設定（付表・選択シート）'!I$20,\"○\",\"\")","v":""}]
[null,null," ２ 防災・減災・国土強靱化緊急対策事業",{"$f":"IF('4②.金利設定（付表・選択シート）'!D11='4②.金利設定（付表・選択シート）'!I$12,\"該当なし\",IF('4②.金利設定（付表・選択シート）'!D11='4②.金利設定（付表・選択シート）'!I$13,\"○\",\"\"))","v":""},{"$f":"IF('4②.金利設定（付表・選択シート）'!D11='4②.金利設定（付表・選択シート）'!I$16,\"○\",\"\")","v":""},{"$f":"IF('4②.金利設定（付表・選択シート）'!D11='4②.金利設定（付表・選択シート）'!I$17,\"○\",\"\")","v":""},{"$f":"IF('4②.金利設定（付表・選択シート）'!D11='4②.金利設定（付表・選択シート）'!I$18,\"○\",\"\")","v":""},{"$f":"IF('4②.金利設定（付表・選択シート）'!D11='4②.金利設定（付表・選択シート）'!I$19,\"○\",\"\")","v":""},{"$f":"IF('4②.金利設定（付表・選択シート）'!D11='4②.金利設定（付表・選択シート）'!I$20,\"○\",\"\")","v":""}]
[null,null," ３ 公営住宅建設事業",{"$f":"IF('4②.金利設定（付表・選択シート）'!D12='4②.金利設定（付表・選択シート）'!I$12,\"該当なし\",IF('4②.金利設定（付表・選択シート）'!D12='4②.金利設定（付表・選択シート）'!I$13,\"○\",\"\"))","v":""},{"$f":"IF('4②.金利設定（付表・選択シート）'!D12='4②.金利設定（付表・選択シート）'!I$16,\"○\",\"\")","v":""},{"$f":"IF('4②.金利設定（付表・選択シート）'!D12='4②.金利設定（付表・選択シート）'!I$17,\"○\",\"\")","v":""},{"$f":"IF('4②.金利設定（付表・選択シート）'!D12='4②.金利設定（付表・選択シート）'!I$18,\"○\",\"\")","v":""},{"$f":"IF('4②.金利設定（付表・選択シート）'!D12='4②.金利設定（付表・選択シート）'!I$19,\"○\",\"\")","v":""},{"$f":"IF('4②.金利設定（付表・選択シート）'!D12='4②.金利設定（付表・選択シート）'!I$20,\"○\",\"\")","v":""}]
[null,null," ４ 災害復旧事業",{"$f":"IF('4②.金利設定（付表・選択シート）'!D13='4②.金利設定（付表・選択シート）'!I$12,\"該当なし\",IF('4②.金利設定（付表・選択シート）'!D13='4②.金利設定（付表・選択シート）'!I$13,\"○\",\"\"))","v":""},{"$f":"IF('4②.金利設定（付表・選択シート）'!D13='4②.金利設定（付表・選択シート）'!I$16,\"○\",\"\")","v":""},{"$f":"IF('4②.金利設定（付表・選択シート）'!D13='4②.金利設定（付表・選択シート）'!I$17,\"○\",\"\")","v":""},{"$f":"IF('4②.金利設定（付表・選択シート）'!D13='4②.金利設定（付表・選択シート）'!I$18,\"○\",\"\")","v":""},{"$f":"IF('4②.金利設定（付表・選択シート）'!D13='4②.金利設定（付表・選択シート）'!I$19,\"○\",\"\")","v":""},{"$f":"IF('4②.金利設定（付表・選択シート）'!D13='4②.金利設定（付表・選択シート）'!I$20,\"○\",\"\")","v":""}]
[null,null," ５ 学校教育施設等",{"$f":"IF('4②.金利設定（付表・選択シート）'!D14='4②.金利設定（付表・選択シート）'!I$12,\"該当なし\",IF('4②.金利設定（付表・選択シート）'!D14='4②.金利設定（付表・選択シート）'!I$13,\"○\",\"\"))","v":""},{"$f":"IF('4②.金利設定（付表・選択シート）'!D14='4②.金利設定（付表・選択シート）'!I$16,\"○\",\"\")","v":""},{"$f":"IF('4②.金利設定（付表・選択シート）'!D14='4②.金利設定（付表・選択シート）'!I$17,\"○\",\"\")","v":""},{"$f":"IF('4②.金利設定（付表・選択シート）'!D14='4②.金利設定（付表・選択シート）'!I$18,\"○\",\"\")","v":""},{"$f":"IF('4②.金利設定（付表・選択シート）'!D14='4②.金利設定（付表・選択シート）'!I$19,\"○\",\"\")","v":""},{"$f":"IF('4②.金利設定（付表・選択シート）'!D14='4②.金利設定（付表・選択シート）'!I$20,\"○\",\"\")","v":""}]
[null,null," ６ 社会福祉施設",{"$f":"IF('4②.金利設定（付表・選択シート）'!D15='4②.金利設定（付表・選択シート）'!I$12,\"該当なし\",IF('4②.金利設定（付表・選択シート）'!D15='4②.金利設定（付表・選択シート）'!I$13,\"○\",\"\"))","v":""},{"$f":"IF('4②.金利設定（付表・選択シート）'!D15='4②.金利設定（付表・選択シート）'!I$16,\"○\",\"\")","v":""},{"$f":"IF('4②.金利設定（付表・選択シート）'!D15='4②.金利設定（付表・選択シート）'!I$17,\"○\",\"\")","v":""},{"$f":"IF('4②.金利設定（付表・選択シート）'!D15='4②.金利設定（付表・選択シート）'!I$18,\"○\",\"\")","v":""},{"$f":"IF('4②.金利設定（付表・選択シート）'!D15='4②.金利設定（付表・選択シート）'!I$19,\"○\",\"\")","v":""},{"$f":"IF('4②.金利設定（付表・選択シート）'!D15='4②.金利設定（付表・選択シート）'!I$20,\"○\",\"\")","v":""}]
[null,null," ７ 一般廃棄物処理",{"$f":"IF('4②.金利設定（付表・選択シート）'!D16='4②.金利設定（付表・選択シート）'!I$12,\"該当なし\",IF('4②.金利設定（付表・選択シート）'!D16='4②.金利設定（付表・選択シート）'!I$13,\"○\",\"\"))","v":""},{"$f":"IF('4②.金利設定（付表・選択シート）'!D16='4②.金利設定（付表・選択シート）'!I$16,\"○\",\"\")","v":""},{"$f":"IF('4②.金利設定（付表・選択シート）'!D16='4②.金利設定（付表・選択シート）'!I$17,\"○\",\"\")","v":""},{"$f":"IF('4②.金利設定（付表・選択シート）'!D16='4②.金利設定（付表・選択シート）'!I$18,\"○\",\"\")","v":""},{"$f":"IF('4②.金利設定（付表・選択シート）'!D16='4②.金利設定（付表・選択シート）'!I$19,\"○\",\"\")","v":""},{"$f":"IF('4②.金利設定（付表・選択シート）'!D16='4②.金利設定（付表・選択シート）'!I$20,\"○\",\"\")","v":""}]
[null,null," ８ 一般補助施設等",{"$f":"IF('4②.金利設定（付表・選択シート）'!D17='4②.金利設定（付表・選択シート）'!I$12,\"該当なし\",IF('4②.金利設定（付表・選択シート）'!D17='4②.金利設定（付表・選択シート）'!I$13,\"○\",\"\"))","v":""},{"$f":"IF('4②.金利設定（付表・選択シート）'!D17='4②.金利設定（付表・選択シート）'!I$16,\"○\",\"\")","v":""},{"$f":"IF('4②.金利設定（付表・選択シート）'!D17='4②.金利設定（付表・選択シート）'!I$17,\"○\",\"\")","v":""},{"$f":"IF('4②.金利設定（付表・選択シート）'!D17='4②.金利設定（付表・選択シート）'!I$18,\"○\",\"\")","v":""},{"$f":"IF('4②.金利設定（付表・選択シート）'!D17='4②.金利設定（付表・選択シート）'!I$19,\"○\",\"\")","v":""},{"$f":"IF('4②.金利設定（付表・選択シート）'!D17='4②.金利設定（付表・選択シート）'!I$20,\"○\",\"\")","v":""}]
[null,null,"(うち、特別転貸債\n（下段に転貸先を記入し選択）)"]
[null,null,{"$f":"+'4②.金利設定（付表・選択シート）'!C19","v":0},{"$f":"IF('4②.金利設定（付表・選択シート）'!D19='4②.金利設定（付表・選択シート）'!I$12,\"該当なし\",IF('4②.金利設定（付表・選択シート）'!D19='4②.金利設定（付表・選択シート）'!I$13,\"○\",\"\"))","v":""},{"$f":"IF('4②.金利設定（付表・選択シート）'!D19='4②.金利設定（付表・選択シート）'!I$16,\"○\",\"\")","v":""},{"$f":"IF('4②.金利設定（付表・選択シート）'!D19='4②.金利設定（付表・選択シート）'!I$17,\"○\",\"\")","v":""},{"$f":"IF('4②.金利設定（付表・選択シート）'!D19='4②.金利設定（付表・選択シート）'!I$18,\"○\",\"\")","v":""},{"$f":"IF('4②.金利設定（付表・選択シート）'!D19='4②.金利設定（付表・選択シート）'!I$19,\"○\",\"\")","v":""},{"$f":"IF('4②.金利設定（付表・選択シート）'!D19='4②.金利設定（付表・選択シート）'!I$20,\"○\",\"\")","v":""}]
[null,null,{"$f":"+'4②.金利設定（付表・選択シート）'!C20","v":0},{"$f":"IF('4②.金利設定（付表・選択シート）'!D20='4②.金利設定（付表・選択シート）'!I$12,\"該当なし\",IF('4②.金利設定（付表・選択シート）'!D20='4②.金利設定（付表・選択シート）'!I$13,\"○\",\"\"))","v":""},{"$f":"IF('4②.金利設定（付表・選択シート）'!D20='4②.金利設定（付表・選択シート）'!I$16,\"○\",\"\")","v":""},{"$f":"IF('4②.金利設定（付表・選択シート）'!D20='4②.金利設定（付表・選択シート）'!I$17,\"○\",\"\")","v":""},{"$f":"IF('4②.金利設定（付表・選択シート）'!D20='4②.金利設定（付表・選択シート）'!I$18,\"○\",\"\")","v":""},{"$f":"IF('4②.金利設定（付表・選択シート）'!D20='4②.金利設定（付表・選択シート）'!I$19,\"○\",\"\")","v":""},{"$f":"IF('4②.金利設定（付表・選択シート）'!D20='4②.金利設定（付表・選択シート）'!I$20,\"○\",\"\")","v":""}]
[null,null," ９ 防災対策",{"$f":"IF('4②.金利設定（付表・選択シート）'!D21='4②.金利設定（付表・選択シート）'!I$12,\"該当なし\",IF('4②.金利設定（付表・選択シート）'!D21='4②.金利設定（付表・選択シート）'!I$13,\"○\",\"\"))","v":""},{"$f":"IF('4②.金利設定（付表・選択シート）'!D21='4②.金利設定（付表・選択シート）'!I$16,\"○\",\"\")","v":""},{"$f":"IF('4②.金利設定（付表・選択シート）'!D21='4②.金利設定（付表・選択シート）'!I$17,\"○\",\"\")","v":""},{"$f":"IF('4②.金利設定（付表・選択シート）'!D21='4②.金利設定（付表・選択シート）'!I$18,\"○\",\"\")","v":""},{"$f":"IF('4②.金利設定（付表・選択シート）'!D21='4②.金利設定（付表・選択シート）'!I$19,\"○\",\"\")","v":""},{"$f":"IF('4②.金利設定（付表・選択シート）'!D21='4②.金利設定（付表・選択シート）'!I$20,\"○\",\"\")","v":""}]
[null,null," 10 公共施設等適正管理",{"$f":"IF('4②.金利設定（付表・選択シート）'!D22='4②.金利設定（付表・選択シート）'!I$12,\"該当なし\",IF('4②.金利設定（付表・選択シート）'!D22='4②.金利設定（付表・選択シート）'!I$13,\"○\",\"\"))","v":""},{"$f":"IF('4②.金利設定（付表・選択シート）'!D22='4②.金利設定（付表・選択シート）'!I$16,\"○\",\"\")","v":""},{"$f":"IF('4②.金利設定（付表・選択シート）'!D22='4②.金利設定（付表・選択シート）'!I$17,\"○\",\"\")","v":""},{"$f":"IF('4②.金利設定（付表・選択シート）'!D22='4②.金利設定（付表・選択シート）'!I$18,\"○\",\"\")","v":""},{"$f":"IF('4②.金利設定（付表・選択シート）'!D22='4②.金利設定（付表・選択シート）'!I$19,\"○\",\"\")","v":""},{"$f":"IF('4②.金利設定（付表・選択シート）'!D22='4②.金利設定（付表・選択シート）'!I$20,\"○\",\"\")","v":""}]
[null,null," 11 緊急自然災害防止対策事業",{"$f":"IF('4②.金利設定（付表・選択シート）'!D23='4②.金利設定（付表・選択シート）'!I$12,\"該当なし\",IF('4②.金利設定（付表・選択シート）'!D23='4②.金利設定（付表・選択シート）'!I$13,\"○\",\"\"))","v":""},{"$f":"IF('4②.金利設定（付表・選択シート）'!D23='4②.金利設定（付表・選択シート）'!I$16,\"○\",\"\")","v":""},{"$f":"IF('4②.金利設定（付表・選択シート）'!D23='4②.金利設定（付表・選択シート）'!I$17,\"○\",\"\")","v":""},{"$f":"IF('4②.金利設定（付表・選択シート）'!D23='4②.金利設定（付表・選択シート）'!I$18,\"○\",\"\")","v":""},{"$f":"IF('4②.金利設定（付表・選択シート）'!D23='4②.金利設定（付表・選択シート）'!I$19,\"○\",\"\")","v":""},{"$f":"IF('4②.金利設定（付表・選択シート）'!D23='4②.金利設定（付表・選択シート）'!I$20,\"○\",\"\")","v":""}]
[null,null," 12 辺地対策",{"$f":"IF('4②.金利設定（付表・選択シート）'!D24='4②.金利設定（付表・選択シート）'!I$12,\"該当なし\",IF('4②.金利設定（付表・選択シート）'!D24='4②.金利設定（付表・選択シート）'!I$13,\"○\",\"\"))","v":""},{"$f":"IF('4②.金利設定（付表・選択シート）'!D24='4②.金利設定（付表・選択シート）'!I$16,\"○\",\"\")","v":""},{"$f":"IF('4②.金利設定（付表・選択シート）'!D24='4②.金利設定（付表・選択シート）'!I$17,\"○\",\"\")","v":""},{"$f":"IF('4②.金利設定（付表・選択シート）'!D24='4②.金利設定（付表・選択シート）'!I$18,\"○\",\"\")","v":""},{"$f":"IF('4②.金利設定（付表・選択シート）'!D24='4②.金利設定（付表・選択シート）'!I$19,\"○\",\"\")","v":""},{"$f":"IF('4②.金利設定（付表・選択シート）'!D24='4②.金利設定（付表・選択シート）'!I$20,\"○\",\"\")","v":""}]
[null,null," 13 過疎対策",{"$f":"IF('4②.金利設定（付表・選択シート）'!D25='4②.金利設定（付表・選択シート）'!I$12,\"該当なし\",IF('4②.金利設定（付表・選択シート）'!D25='4②.金利設定（付表・選択シート）'!I$13,\"○\",\"\"))","v":""},{"$f":"IF('4②.金利設定（付表・選択シート）'!D25='4②.金利設定（付表・選択シート）'!I$16,\"○\",\"\")","v":""},{"$f":"IF('4②.金利設定（付表・選択シート）'!D25='4②.金利設定（付表・選択シート）'!I$17,\"○\",\"\")","v":""},{"$f":"IF('4②.金利設定（付表・選択シート）'!D25='4②.金利設定（付表・選択シート）'!I$18,\"○\",\"\")","v":""},{"$f":"IF('4②.金利設定（付表・選択シート）'!D25='4②.金利設定（付表・選択シート）'!I$19,\"○\",\"\")","v":""},{"$f":"IF('4②.金利設定（付表・選択シート）'!D25='4②.金利設定（付表・選択シート）'!I$20,\"○\",\"\")","v":""}]
[null,null,"Ⅱ 公営企業債"]
[null,null," １ 水道事業（上水道事業）",{"$f":"IF('4②.金利設定（付表・選択シート）'!D27='4②.金利設定（付表・選択シート）'!I$12,\"該当なし\",IF('4②.金利設定（付表・選択シート）'!D27='4②.金利設定（付表・選択シート）'!I$13,\"○\",\"\"))","v":""},{"$f":"IF('4②.金利設定（付表・選択シート）'!D27='4②.金利設定（付表・選択シート）'!I$16,\"○\",\"\")","v":""},{"$f":"IF('4②.金利設定（付表・選択シート）'!D27='4②.金利設定（付表・選択シート）'!I$17,\"○\",\"\")","v":""},{"$f":"IF('4②.金利設定（付表・選択シート）'!D27='4②.金利設定（付表・選択シート）'!I$18,\"○\",\"\")","v":""},{"$f":"IF('4②.金利設定（付表・選択シート）'!D27='4②.金利設定（付表・選択シート）'!I$19,\"○\",\"\")","v":""},{"$f":"IF('4②.金利設定（付表・選択シート）'!D27='4②.金利設定（付表・選択シート）'!I$20,\"○\",\"\")","v":""}]
[null,null," ２ 水道事業（簡易水道事業）",{"$f":"IF('4②.金利設定（付表・選択シート）'!D28='4②.金利設定（付表・選択シート）'!I$12,\"該当なし\",IF('4②.金利設定（付表・選択シート）'!D28='4②.金利設定（付表・選択シート）'!I$13,\"○\",\"\"))","v":""},{"$f":"IF('4②.金利設定（付表・選択シート）'!D28='4②.金利設定（付表・選択シート）'!I$16,\"○\",\"\")","v":""},{"$f":"IF('4②.金利設定（付表・選択シート）'!D28='4②.金利設定（付表・選択シート）'!I$17,\"○\",\"\")","v":""},{"$f":"IF('4②.金利設定（付表・選択シート）'!D28='4②.金利設定（付表・選択シート）'!I$18,\"○\",\"\")","v":""},{"$f":"IF('4②.金利設定（付表・選択シート）'!D28='4②.金利設定（付表・選択シート）'!I$19,\"○\",\"\")","v":""},{"$f":"IF('4②.金利設定（付表・選択シート）'!D28='4②.金利設定（付表・選択シート）'!I$20,\"○\",\"\")","v":""}]
[null,null," ３ 交通事業（都市高速鉄道事業）",{"$f":"IF('4②.金利設定（付表・選択シート）'!D29='4②.金利設定（付表・選択シート）'!I$12,\"該当なし\",IF('4②.金利設定（付表・選択シート）'!D29='4②.金利設定（付表・選択シート）'!I$13,\"○\",\"\"))","v":""},{"$f":"IF('4②.金利設定（付表・選択シート）'!D29='4②.金利設定（付表・選択シート）'!I$16,\"○\",\"\")","v":""},{"$f":"IF('4②.金利設定（付表・選択シート）'!D29='4②.金利設定（付表・選択シート）'!I$17,\"○\",\"\")","v":""},{"$f":"IF('4②.金利設定（付表・選択シート）'!D29='4②.金利設定（付表・選択シート）'!I$18,\"○\",\"\")","v":""},{"$f":"IF('4②.金利設定（付表・選択シート）'!D29='4②.金利設定（付表・選択シート）'!I$19,\"○\",\"\")","v":""},{"$f":"IF('4②.金利設定（付表・選択シート）'!D29='4②.金利設定（付表・選択シート）'!I$20,\"○\",\"\")","v":""}]
[null,null," ４ 交通事業（一般交通事業）",{"$f":"IF('4②.金利設定（付表・選択シート）'!D30='4②.金利設定（付表・選択シート）'!I$12,\"該当なし\",IF('4②.金利設定（付表・選択シート）'!D30='4②.金利設定（付表・選択シート）'!I$13,\"○\",\"\"))","v":""},{"$f":"IF('4②.金利設定（付表・選択シート）'!D30='4②.金利設定（付表・選択シート）'!I$16,\"○\",\"\")","v":""},{"$f":"IF('4②.金利設定（付表・選択シート）'!D30='4②.金利設定（付表・選択シート）'!I$17,\"○\",\"\")","v":""},{"$f":"IF('4②.金利設定（付表・選択シート）'!D30='4②.金利設定（付表・選択シート）'!I$18,\"○\",\"\")","v":""},{"$f":"IF('4②.金利設定（付表・選択シート）'!D30='4②.金利設定（付表・選択シート）'!I$19,\"○\",\"\")","v":""},{"$f":"IF('4②.金利設定（付表・選択シート）'!D30='4②.金利設定（付表・選択シート）'!I$20,\"○\",\"\")","v":""}]
[null,null," ５ 港湾整備事業",{"$f":"IF('4②.金利設定（付表・選択シート）'!D31='4②.金利設定（付表・選択シート）'!I$12,\"該当なし\",IF('4②.金利設定（付表・選択シート）'!D31='4②.金利設定（付表・選択シート）'!I$13,\"○\",\"\"))","v":""},{"$f":"IF('4②.金利設定（付表・選択シート）'!D31='4②.金利設定（付表・選択シート）'!I$16,\"○\",\"\")","v":""},{"$f":"IF('4②.金利設定（付表・選択シート）'!D31='4②.金利設定（付表・選択シート）'!I$17,\"○\",\"\")","v":""},{"$f":"IF('4②.金利設定（付表・選択シート）'!D31='4②.金利設定（付表・選択シート）'!I$18,\"○\",\"\")","v":""},{"$f":"IF('4②.金利設定（付表・選択シート）'!D31='4②.金利設定（付表・選択シート）'!I$19,\"○\",\"\")","v":""},{"$f":"IF('4②.金利設定（付表・選択シート）'!D31='4②.金利設定（付表・選択シート）'!I$20,\"○\",\"\")","v":""}]
[null,null," ６ 病院事業",{"$f":"IF('4②.金利設定（付表・選択シート）'!D32='4②.金利設定（付表・選択シート）'!I$12,\"該当なし\",IF('4②.金利設定（付表・選択シート）'!D32='4②.金利設定（付表・選択シート）'!I$13,\"○\",\"\"))","v":""},{"$f":"IF('4②.金利設定（付表・選択シート）'!D32='4②.金利設定（付表・選択シート）'!I$16,\"○\",\"\")","v":""},{"$f":"IF('4②.金利設定（付表・選択シート）'!D32='4②.金利設定（付表・選択シート）'!I$17,\"○\",\"\")","v":""},{"$f":"IF('4②.金利設定（付表・選択シート）'!D32='4②.金利設定（付表・選択シート）'!I$18,\"○\",\"\")","v":""},{"$f":"IF('4②.金利設定（付表・選択シート）'!D32='4②.金利設定（付表・選択シート）'!I$19,\"○\",\"\")","v":""},{"$f":"IF('4②.金利設定（付表・選択シート）'!D32='4②.金利設定（付表・選択シート）'!I$20,\"○\",\"\")","v":""}]
[null,null," ７ 下水道事業",{"$f":"IF('4②.金利設定（付表・選択シート）'!D33='4②.金利設定（付表・選択シート）'!I$12,\"該当なし\",IF('4②.金利設定（付表・選択シート）'!D33='4②.金利設定（付表・選択シート）'!I$13,\"○\",\"\"))","v":""},{"$f":"IF('4②.金利設定（付表・選択シート）'!D33='4②.金利設定（付表・選択シート）'!I$16,\"○\",\"\")","v":""},{"$f":"IF('4②.金利設定（付表・選択シート）'!D33='4②.金利設定（付表・選択シート）'!I$17,\"○\",\"\")","v":""},{"$f":"IF('4②.金利設定（付表・選択シート）'!D33='4②.金利設定（付表・選択シート）'!I$18,\"○\",\"\")","v":""},{"$f":"IF('4②.金利設定（付表・選択シート）'!D33='4②.金利設定（付表・選択シート）'!I$19,\"○\",\"\")","v":""},{"$f":"IF('4②.金利設定（付表・選択シート）'!D33='4②.金利設定（付表・選択シート）'!I$20,\"○\",\"\")","v":""}]
[null,null,"Ⅲ　臨時財政対策債",null,{"$f":"IF('4②.金利設定（付表・選択シート）'!D34='4②.金利設定（付表・選択シート）'!I$16,\"○\",\"\")","v":""},{"$f":"IF('4②.金利設定（付表・選択シート）'!D34='4②.金利設定（付表・選択シート）'!I$17,\"○\",\"\")","v":""}]
[null,null,"Ⅳ　再生振替特例債",{"$f":"IF('4②.金利設定（付表・選択シート）'!D35='4②.金利設定（付表・選択シート）'!I$12,\"該当なし\",IF('4②.金利設定（付表・選択シート）'!D35='4②.金利設定（付表・選択シート）'!I$13,\"○\",\"\"))","v":""},{"$f":"IF('4②.金利設定（付表・選択シート）'!D35='4②.金利設定（付表・選択シート）'!I$16,\"○\",\"\")","v":""},{"$f":"IF('4②.金利設定（付表・選択シート）'!D35='4②.金利設定（付表・選択シート）'!I$17,\"○\",\"\")","v":""},{"$f":"IF('4②.金利設定（付表・選択シート）'!D35='4②.金利設定（付表・選択シート）'!I$18,\"○\",\"\")","v":""},{"$f":"IF('4②.金利設定（付表・選択シート）'!D35='4②.金利設定（付表・選択シート）'!I$19,\"○\",\"\")","v":""},{"$f":"IF('4②.金利設定（付表・選択シート）'!D35='4②.金利設定（付表・選択シート）'!I$20,\"○\",\"\")","v":""}]

{"sheet":"5.事業計画変更","index":7,"n_rows":35,"n_cols":10,"rows_kept":35,"cut":false,"hidden":false,"merged":[[7,7,7,9],[9,7,9,9],[28,4,31,9],[15,0,15,9],[34,4,34,9],[33,2,33,4],[11,0,11,9],[13,0,13,9]]}
[]
[null,null,null,null,null,null,null,null,null,"第 　       号"]
[]
[null,null,null,null,null,null,null,null,null,"　　 年    月    日"]
[]
[null,"財 務 大 臣    殿"]
[]
[null,null,null,null,null,null,null,"（地方公共団体名）"]
[]
[null,null,null,null,null,null,null,"（代表者の職　　　氏　名 ）"]
[]
["事業計画変更承認申請書"]
[]
["下記のとおり、事業計画の変更をいたしたいので承認願いたく申請します。"]
[]
["記"]
[]
[null,null,1,null,"事業名"]
[]
[null,null,2,null,"貸付予定額",null,null,null,"千円"]
[]
[null,null,3,null,"計画事業費",null,"変更前",null,"千円"]
[]
[null,null,null,null,null,null,"変更後",null,"千円"]
[]
[null,null,null,null,null,null,"増  減",{"$f":"+H24-H22","v":0},"千円"]
[]
[null,null,4,null,"変更の理由"]
[]
[]
[]
[]
[]
[null,null,"（添付書類）"]
[null,null,null,null,"起債計画書（付表を含む）　　　　１式"]

{"sheet":"6.期日延長","index":8,"n_rows":22,"n_cols":9,"rows_kept":22,"cut":false,"hidden":false,"merged":[[21,1,22,6],[19,1,20,6],[17,1,17,6],[13,1,13,6],[11,1,11,9],[14,1,14,6],[18,1,18,6],[16,1,16,6],[15,1,15,6]]}
["（財政融資資金地方長期資金等貸付期日延長承認申請書）別紙"]
[]
[]
[]
[null,null,null,null,null,null,null,null,"　　　　　（地方公共団体名）"]
[]
[]
[]
[]
[]
[]
[]
[]
[null,"事業名"]
[null,"借入予定額"]
[null,"貸付期限"]
[null,"工事契約年月日"]
[null,"着工(見込)年月日"]
[null,"完成(見込)年月日"]
[null,"予算措置状況\n（繰越承認手続）"]
[]
[null,"貸付期日延長の理由"]

{"sheet":"7.不用額報告","index":9,"n_rows":17,"n_cols":7,"rows_kept":17,"cut":false,"hidden":false,"merged":[[11,1,12,2],[13,1,14,2],[8,1,8,2],[9,1,10,2]]}
["（財政融資資金地方長期資金等貸付予定額不用額報告書）別紙"]
[]
[]
[]
[null,null,null,null,"（地 方 公 共 団 体 名）"]
[]
[]
[null,null,null,null,null,null,"（単位:千円）"]
[null,"事　業　名",null,"資金年度及び\n資 　金 　名","既決定貸付\n予　定　額","不　用　額","不用額を生じた理由"]
[]
[]
[]
[]
[]
[]
[]
[null,"備考","用紙の大きさは、日本産業規格Ａ列４とする。"]

{"sheet":"8.借用証書の提出方法変更依頼書","index":10,"n_rows":24,"n_cols":27,"rows_kept":24,"cut":false,"hidden":false,"merged":[[21,2,21,10],[18,2,18,10],[18,11,18,14],[18,15,18,17],[18,18,18,20],[19,2,19,10],[19,11,19,14],[19,15,19,17],[19,18,19,20],[20,2,20,10],[20,11,20,14],[20,15,20,17],[20,18,20,20],[18,27,21,27],[21,11,21,14],[21,15,21,17],[21,18,21,20],[21,23,21,25],[2,17,2,26],[2,27,4,27],[4,16,4,17],[6,1,6,11],[14,8,15,8],[14,9,15,9],[14,10,15,27],[7,19,7,24],[11,0,11,27],[14,1,15,1],[14,2,15,2],[14,3,15,3],[14,4,15,4],[14,5,15,5],[14,6,15,6],[14,7,15,7]]}
[]
[]
[null,null,null,null,null,null,null,null,null,null,null,null,null,null,null,null,null,"号"]
[]
[null,null,null,null,null,null,null,null,null,null,null,null,null,null,null,null,null,null,null,null,"年",null,null,"月",null,null,"日"]
[]
[null," ○○財務局　融資課　御中\n(□□財務事務所　財務課　御中）"]
[null,null,null,null,null,null,null,null,null,null,null,null,null,null,null,null,null,null,null,"（地方公共団体の名称）"]
[null,null,null,null,null,null,null,null,null,null,null,null,null,null,null,null,null,null,null,"担当課："]
[null,null,null,null,null,null,null,null,null,null,null,null,null,null,null,null,null,null,null,"連絡先："]
[]
["財政融資資金借用証書の提出方法変更依頼書"]
[]
[]
[null,null,null,null,"年",null,null,"月",null,null,"日以降に申請する借入申込の借用証書の提出方法の変更を依頼します。　"]
[]
[]
[]
[null,null,"貸付先名称",null,null,null,null,null,null,null,null,"貸付先コード",null,null,null,"変更前",null,null,"変更後"]
[null,null,null,null,null,null,null,null,null,null,null,null,null,null,null,"書面\n電子",null,null,"書面\n電子"]
[null,null,null,null,null,null,null,null,null,null,null,null,null,null,null,"書面\n電子",null,null,"書面\n電子"]
[null,null,null,null,null,null,null,null,null,null,null,null,null,null,null,"書面\n電子",null,null,"書面\n電子"]
[]
[null,null,"※複数の貸付先コードを変更する場合には、行を追加して全てのコードを記載してください。"]

{"sheet":"9.口座異動","index":11,"n_rows":77,"n_cols":26,"rows_kept":77,"cut":false,"hidden":false,"merged":[[10,1,10,35],[65,3,65,35],[12,3,12,35],[14,1,14,35],[16,10,16,11],[16,12,16,13],[16,15,16,16],[16,18,16,19],[25,3,25,9],[23,3,23,9],[20,3,20,9],[51,12,51,15],[1,25,1,34],[2,25,2,34],[3,2,3,10],[6,25,6,35],[8,25,8,33],[8,18,8,24],[6,18,6,24],[4,18,4,24],[67,1,67,2],[56,3,56,9],[30,12,30,15],[49,3,49,9],[28,3,28,9],[44,3,44,9],[46,3,46,9],[51,3,51,9],[53,3,53,9],[30,3,30,9],[32,3,32,9],[35,3,35,9],[41,3,41,9],[62,3,62,35]]}
[]
[null,null,null,null,null,null,null,null,null,null,null,null,null,null,null,null,null,null,null,null,null,null,null,null,null,"第　　　　　号"]
[null,null,null,null,null,null,null,null,null,null,null,null,null,null,null,null,null,null,null,null,null,null,null,null,null,"　　年　　月　　日"]
[null,null,"財 務 大 臣　　殿"]
[null,null,null,null,null,null,null,null,null,null,null,null,null,null,null,null,null,null,"（貸付先コード）"]
[]
[null,null,null,null,null,null,null,null,null,null,null,null,null,null,null,null,null,null,"（地方公共団体名）"]
[]
[null,null,null,null,null,null,null,null,null,null,null,null,null,null,null,null,null,null,"（代表者の職　氏名）"]
[]
[null,"振　込　口　座　異　動　通　知　書"]
[]
[null,null,null,"財政融資資金の振込口座を下記のとおり登録します。"]
[]
[null,"記"]
[]
[null,"１","異動年月日",null,null,null,null,null,null,null,null,null,null,null,"年",null,null,"月",null,null,"日"]
[]
[null,"２","振込口座"]
[null,"（１）異動後 振込口座"]
[null,null,null,"①金融機関名"]
[]
[]
[null,null,null,"②金融機関コード"]
[]
[null,null,null,"③店舗名（コード）"]
[null,null,null,null,null,null,null,null,null,null,"（",null,null,null,"）"]
[]
[null,null,null,"④口座番号"]
[]
[null,null,null,"⑤預貯金種別",null,null,null,null,null,null,null,"（",{"$f":"IFERROR((VLOOKUP(K31,$M$75:$O$77,2)),\"\")","v":""},null,null,null,"）"]
[]
[null,null,null,"⑥口座名義（漢字）"]
[]
[]
[null,null,null,"⑦口座名義（カナ）"]
[]
[]
[]
[]
[null,"（２）異動前 振込口座"]
[null,null,null,"①金融機関名"]
[]
[]
[null,null,null,"②金融機関コード"]
[]
[null,null,null,"③店舗名（コード）"]
[null,null,null,null,null,null,null,null,null,null,"（",null,null,null,"）"]
[]
[null,null,null,"④口座番号"]
[]
[null,null,null,"⑤預貯金種別",null,null,null,null,null,null,null,"（",{"$f":"IFERROR((VLOOKUP(K52,$M$75:$O$77,2)),\"\")","v":""},null,null,null,"）"]
[]
[null,null,null,"⑥口座名義（漢字）"]
[]
[]
[null,null,null,"⑦口座名義（カナ）"]
[]
[]
[]
[]
[null,"３","口座異動の理由"]
[]
[]
[null,"４","口座を確認できる書類等"]
[null,null,null,"預貯金通帳の写し"]
[]
[null,"備 考"]
[null,null,"１",null,"用紙の大きさは、日本産業規格Ａ列４とする。"]
[null,null,"２",null,"「４ 口座を確認できる書類等」は、金融機関の残高証明書又はこれに代わる証明書、預貯金通帳等の"]
[null,null,null,"　写し、地方公共団体の会計管理者が証明する書類のいずれかを提出すること。"]
[]
[]
[]
[null,null,null,null,null,null,null,null,null,null,null,null,1,"普通預金"]
[null,null,null,null,null,null,null,null,null,null,null,null,2,"当座預金"]
[null,null,null,null,null,null,null,null,null,null,null,null,6,"別段預金"]

{"sheet":"10.名称等変更","index":12,"n_rows":54,"n_cols":23,"rows_kept":54,"cut":false,"hidden":false,"merged":[[48,4,48,22],[34,4,34,22],[32,3,32,7],[44,4,44,22],[43,7,43,10],[41,4,41,22],[46,3,46,8],[40,7,40,10],[24,4,24,7],[24,9,24,22],[26,9,26,22],[28,9,28,22],[30,9,30,22],[26,4,26,7],[30,4,30,7],[28,4,28,7],[12,1,12,22],[14,1,14,22],[18,3,18,4],[22,3,22,7],[1,11,1,13],[10,1,10,22],[4,2,4,7]]}
[]
[null,null,null,null,null,null,null,null,null,null,null,null,null,null,null,null,null,null,null,null,null,null,"第　　　　　号"]
[null,null,null,null,null,null,null,null,null,null,null,null,null,null,null,null,null,null,null,null,null,null,"　　年　　月　　日"]
[]
[null,null,"財　務　大　臣　　殿"]
[]
[null,null,null,null,null,null,null,null,null,null,null,null,"（地方公共団体名）"]
[]
[null,null,null,null,null,null,null,null,null,null,null,null,"（代表者の職　 　氏　　名 ）"]
[]
[null,"名 称 等 変 更 通 知 書"]
[]
[null,"　標記のことについて、下記のとおり名称等が変更されることとなりましたので通知します。"]
[]
[null,"記"]
[]
[null,null,"１　変更年月日"]
[]
[null,null,null,null,null,null,"年",null,"月",null,"日"]
[]
[null,null,"２　名称"]
[]
[null,null," ・","新旧の名称       "]
[]
[null,null,null,"・","新名称"]
[]
[null,null,null,"・","新代表者役職"]
[]
[null,null,null,"・","旧名称"]
[]
[null,null,null,"・","旧代表者役職"]
[]
[null,null," ・","名称変更の理由"]
[]
[]
[]
[null,null,"３　所在地"]
[]
[null,null," ・","新旧の所在地       "]
[]
[null,null,null,"・","新所在地",null,null,"（〒   -    ）"]
[]
[]
[null,null,null,"・","旧所在地",null,null,"（〒   -    ）"]
[]
[]
[null,null," ・","所在地変更の理由"]
[]
[]
[]
[null,null,"備考　"]
[null,null,"１　名称等変更の理由が法令に基づく場合には、法令名及び関係条項を併記すること。"]
[null,null,"２　本省資金については、所在地欄の記載を要しない。"]
[null,null,"３　地方資金については新代表者役職及び旧代表者役職の欄の記載を要しない。"]

{"sheet":"11.団体変更通知","index":13,"n_rows":42,"n_cols":11,"rows_kept":42,"cut":false,"hidden":false,"merged":[[39,3,39,13],[41,3,41,13],[37,3,37,13],[31,2,31,6],[27,2,27,13],[32,2,32,6],[33,2,33,6],[31,10,31,13],[32,10,33,13],[1,10,1,13],[3,10,3,13],[31,7,31,9],[33,7,33,9],[32,7,32,9],[11,1,11,13],[13,1,13,13],[15,1,15,13],[24,2,24,13]]}
[]
[null,null,null,null,null,null,null,null,null,null,"第　　　　　号"]
[]
[null,null,null,null,null,null,null,null,null,null,"年　　月　　日"]
[null,null,"財務大臣　　殿"]
[]
[null,null,null,null,null,null,null,null,"（地方公共団体名）"]
[]
[null,null,null,null,null,null,null,null,"（代表者の職　　　氏　 名 ）"]
[]
[]
[null,"地 方 公 共 団 体 変 更 通 知 書"]
[]
[null,"　標記のことについて、下記のとおり財政融資資金の借入れを予定している地方公共団体が変更することとなりましたので通知します。"]
[]
[null,"記"]
[]
[null,"１　新旧地方公共団体"]
[]
[null,null,"・新（変更後）地方公共団体名"]
[]
[null,null,"・旧（変更前）地方公共団体名"]
[]
[null,"２　変更年月日"]
[]
[]
[null,"３　変更の理由"]
[]
[]
[null,"４　新地方公共団体が貸付けを受けることとなる金額"]
[]
[null,null,"貸付けの種類",null,null,null,null,"金額",null,null,"備考"]
[null,null,null,null,null,null,null,"千円"]
[]
[]
[null," 備考"]
[]
[null,null,1,"　用紙の大きさは、日本産業規格Ａ列４とする。"]
[]
[null,null,2,"　変更の理由が法令に基づく場合には、当該法令名及び関係条項を併記すること。"]
[]
[null,null,3," 「貸付けの種類」の欄には、地方長期資金等又は地方短期資金の別を記入すること。"]

{"sheet":"13.借入申込書確認シート","index":14,"n_rows":30,"n_cols":17,"rows_kept":30,"cut":false,"hidden":false,"merged":[[26,2,26,5],[26,7,26,8],[26,9,26,10],[26,11,26,12],[26,13,26,14],[25,2,25,5],[25,7,25,8],[25,9,25,10],[25,11,25,12],[25,13,25,14],[22,13,22,14],[23,0,24,0],[23,2,23,5],[23,7,23,8],[23,9,23,10],[23,11,23,12],[23,13,23,14],[24,2,24,5],[21,2,21,5],[21,7,21,8],[21,9,21,10],[21,11,21,12],[22,2,22,5],[22,7,22,8],[22,9,22,10],[22,11,22,12],[19,13,19,14],[20,13,20,14],[17,2,17,5],[17,7,17,8],[17,9,17,10],[17,11,17,12],[17,13,17,14],[18,2,18,5],[19,2,19,5],[19,7,19,8],[19,9,19,10],[19,11,19,12],[20,2,20,5],[20,7,20,8],[20,9,20,10],[20,11,20,12],[15,13,15,14],[16,2,16,5],[16,7,16,8],[16,9,16,10],[16,11,16,12],[16,13,16,14],[15,0,19,0],[15,2,15,5],[15,7,15,8],[15,9,15,10],[15,11,15,12],[14,2,14,5],[14,7,14,8],[14,9,14,10],[14,11,14,12],[14,13,14,14],[12,11,13,12],[8,13,9,14],[8,15,9,15],[8,16,9,16],[9,3,9,5],[10,2,10,5],[10,7,10,8],[10,9,10,10],[10,11,10,12],[10,13,10,14],[12,13,13,14],[12,15,13,15],[12,16,13,16],[13,3,13,5],[11,2,11,5],[12,2,12,5],[12,6,13,6],[12,7,13,8],[12,9,13,10],[8,2,8,5],[8,6,9,6],[8,7,9,8],[8,9,9,10],[8,11,9,12],[5,0,5,1],[5,2,5,3],[5,5,5,6],[7,0,7,5],[7,6,7,15],[0,0,0,16],[1,13,1,16],[2,0,2,2],[2,3,2,6],[4,0,4,1],[4,2,4,3],[4,5,4,6]]}
["財政融資資金借入申込書作成にあたっての確認シート"]
[null,null,null,null,null,null,null,null,null,null,null,null,null," 年      月      日"]
["事業名"]
[]
["団体名",null,null,null,"電話番号"]
["担当課",null,null,null,"担当者"]
[]
["確　　　認　　　事　　　項",null,null,null,null,null,"確認欄",null,null,null,null,null,null,null,null,null,"備考"]
["1．共通","(1)","地方自治法に定める起債の同意等を受けていること。\n",null,null,null,null,"□",null,"適",null,"□",null,"否"]
[null,null,"・","申請中の場合、貸付日までに同意等されていることが条件であることに留意する。"]
[null,"(2)\n","財政融資資金貸付予定額（変更）通知書により、借入金額を再確認すること。",null,null,null,null,"□",null,"適",null,"□",null,"否"]
[null,"(3)\n\n","辺地･過疎対策事業、臨時地方道整備事業(特定分)等にあっては、それぞれの法律等に基づく計画に掲上されているか再確認すること。",null,null,null,null,"□","適","□","否","□","該当無"]
[null,"(4)","償還期限及び据置期間は適正か確認すること。\n",null,null,null,null,"□",null,"適",null,"□",null,"否"]
[null,null,"・\n・\n\n\n","基準年数表の細区分や共通欄も確認。\n付帯設備等耐用年数に留意し、基準年数表を上限として債務管理の観点から適切な年数を設定すること。\n"]
[null,"(5)\n","元利金の支払方法が正しく記載されているか確認すること。（小災害債の場合は年賦元金均等償還と記入すること。）",null,null,null,null,"□",null,"適",null,"□",null,"否"]
["2．事業実施\n　状況等調書","(1)","本調書は起債対象事業費について記載すること。\n（対象外事業費については混入しない。）",null,null,null,null,"□",null,"適",null,"□",null,"否"]
[null,"(2)","事業費内訳、事業完成（見込）日等については、借入申込書作成前に必ず事業主管課と調整すること。",null,null,null,null,"□",null,"適",null,"□",null,"否"]
[null,"(3)\n","補助金等控除財源が、貸付予定額決定後変更がないか確認すること。",null,null,null,null,"□",null,"適",null,"□",null,"否"]
[null,"(4)\n","複合施設の面積按分、附帯施設の積算根拠を明らかにしておくこと。",null,null,null,null,"□","適","□","否","□","該当無"]
[null,"(5)\n","収入・支出状況欄は､資金借入月を「　月」欄に記載すること。",null,null,null,null,"□",null,"適",null,"□",null,"否"]
[null,"(6)\n\n","借入申込時に事業が完成（竣工検査日等）しているか。完成していないものは、貸付日までに事業が完成するか確認すること。なお、貸付期日の最終期限である翌年度末までに完成しないことが明らかになった場合（事故繰越の手続を要する事由が発生した場合）、「事業完成遅延理由書兼事業完成報告書」を提出すること。",null,null,null,null,"□",null,"適",null,"□",null,"否"]
[null,"(7)\n","対象事業費の中に、決算済事業費が含まれていないか再確認すること。",null,null,null,null,"□",null,"適",null,"□",null,"否"]
[null,"(8)\n","貸付対象事業に、少額備品等対象外事業費が含まれていないか再確認すること。",null,null,null,null,"□",null,"適",null,"□",null,"否"]
["3．対象外事業\n　費等に関する\n　確認調書","(1)","確認態勢等については、実態に基づき正確に記載すること。検証資料の「その他」については、具体的な資料名をカッコ内に記載すること。",null,null,null,null,"□",null,"適",null,"□",null,"否"]
[null,"(2)\n\n\n","対象外事業費「有」の場合、少額備品（１品あたりの取得原価20万円未満、又は耐用年数が5年未満）等の内訳を記載すること。「その他」については、具体的な内容をカッコ内に記載すること。",null,null,null,null,"□","適","□","否","□","該当無"]
["4．その他","(1)\n","実施事業に伴って処分する財産がある場合、財政融資資金の処分行為等の手続の必要はないか再確認すること。",null,null,null,null,"□",null,"要",null,"□",null,"不要"]
[null,"(2)\n","財政融資資金オンラインシステムに登録した振込口座に変更がないかどうか確認すること。",null,null,null,null,"□",null,"適",null,"□",null,"否"]
[]
[]
["□","■"]

{"sheet":"14①.長期申込（固定金利）","index":15,"n_rows":46,"n_cols":7,"rows_kept":46,"cut":false,"hidden":false,"merged":[[20,5,20,6],[10,1,10,6],[12,1,12,6],[14,1,14,6],[16,5,16,6],[18,5,18,6],[39,1,39,2],[41,3,41,6],[43,3,43,6],[45,3,45,6],[22,5,22,6],[24,5,24,6],[26,5,26,6],[28,5,28,6],[30,5,30,6],[33,5,33,6],[35,5,35,6],[37,5,37,6]]}
[]
[null,null,null,null,null,null,"第　　　　　号"]
[null,null,null,null,null,null,"年　　月　　日"]
[null,"財 務 大 臣   殿"]
[]
[null,null,null,null,null,null,"（地方公共団体名）"]
[]
[null,null,null,null,null,null,"（代表者の職　　　氏   名 ）"]
[]
[]
[null,"財政融資資金地方長期資金等借入申込書"]
[]
[null,"下記の条件により財政融資資金（地方長期資金等）の借入申込みをします。"]
[]
[null,"記"]
[]
[null,1,null,"借入金額",null,"金　　　　　　　　 円也"]
[]
[null,2,null,"借入希望年月日",null,"　　年　　月　　日"]
[]
[null,3,null,"用途",null,"　"]
[]
[null,4,null,"利率",null,"借入日現在における、約定期間及び元利金の支払方法などに\n応じ、国債の利回りを基準として財務大臣が定める利率"]
[]
[null,5,null,"借用証書の記番号",null,"第       　　号"]
[]
[null,6,null,"据置期限",null,"　　　年　　月　　日"]
[]
[null,7,null,"償還期限",null,"　　　年　　月　　日"]
[]
[null,8,null,"元利金の支払期日",null,"毎年　　月　　日 及び　　月　　日"]
[]
[null,9,null,"元利金の支払方法",null,"「　　何　　」","の方法によるものとし、各支払期日に"]
[null,null,null,null,null,"おける元利金の額は、財務大臣から別途送付される財政融資\n資金貸付金償還年次表によるものとする。"]
[]
[null,10,null,"その他この借入金を借り入れた後において遵守すべき事項",null,"財政融資資金の管理及び運用の手続に関する規則（昭和４９\n年大蔵省令第４２号）に基づき提出する財政融資資金地\n方長期資金等借用証書裏面の特約条項による。"]
[]
[null,11,null,"指定店",null,"日本銀行　　　　　    店"]
[]
[null,"備考",null,"１　用紙の大きさは、日本産業規格Ａ列４とする。"]
[]
[null,null,null,"２　この申込書は、利率見直し貸付け以外の場合に使用すること。"]
[]
[null,null,null,"３  用途の欄は、「何小学校改築事業」のように具体的に記入することとし、同欄に\n　記入できない場合には、「別紙のとおり」として別紙に記入のうえ添付しても差し\n　支えない。"]
[]
[null,null,null,"４  元利金の支払方法中、｢何」の箇所には、財務大臣が定める元利金の支払方法を\n　記入すること。"]

{"sheet":"14②.長期申込（利率見直し）","index":16,"n_rows":47,"n_cols":7,"rows_kept":47,"cut":false,"hidden":false,"merged":[[18,5,18,6],[8,1,8,6],[10,1,10,6],[12,1,12,6],[14,5,14,6],[16,5,16,6],[32,5,32,6],[34,5,34,6],[36,5,36,6],[38,1,38,2],[20,5,20,6],[21,5,21,6],[23,5,23,6],[25,5,25,6],[27,5,27,6],[29,5,29,6]]}
[]
[null,null,null,null,null,null,"第　　　　　号"]
[null,null,null,null,null,null,"年　　月　　日"]
[null,"財 務 大 臣   殿"]
[null,null,null,null,null,null,"（地方公共団体名）"]
[]
[null,null,null,null,null,null,"（代表者の職　　 氏   名 ）"]
[]
[null,"財政融資資金地方長期資金等借入申込書"]
[]
[null,"下記の条件により財政融資資金（地方長期資金等）の借入申込みをします。"]
[]
[null,"記"]
[]
[null,1,null,"借入金額",null,"金　　　　　　　　 円也"]
[]
[null,2,null,"借入希望年月日",null,"　　年　　月　　日"]
[]
[null,3,null,"用途",null,"　"]
[]
[null,4,null,"利率",null,"借入日現在における、約定期間及び元利金の支払方法などに\n応じ、国債の利回りを基準として財務大臣が定める利率（以\n下「適用利率」という。）"]
[null,null,null,null,null,"　ただし、-年 -月 -日から -年 -月 -日までの利率については、-年 -月 -日現在における適用利率を、-年 -月 -日から-年 -月 -日までの利率については、-年 -月 -日現在における適用利率をそれぞれ適用するものとする。"]
[]
[null,5,null,"借用証書の記番号",null,"第       　　号"]
[]
[null,6,null,"据置期限",null,"　　　年　　月　　日"]
[]
[null,7,null,"償還期限",null,"　　　年　　月　　日"]
[]
[null,8,null,"元利金の支払期日",null,"毎年　　月　　日 及び　　月　　日"]
[]
[null,9,null,"元利金の支払方法",null,"「　　何　　」","の方法によるものとし、各支払期日に"]
[null,null,null,null,null,"おける元利金の額は、財務大臣から別途送付される財政融資\n資金貸付金償還年次表によるものとする。"]
[]
[null,10,null,"その他この借入金を借り入れた後において遵守すべき事項",null,"財政融資資金の管理及び運用の手続に関する規則（昭和４９\n年大蔵省令第４２号）に基づき提出する財政融資資金地\n方長期資金等借用証書裏面の特約条項による。"]
[]
[null,11,null,"指定店",null,"日本銀行「　　何　　」店"]
[]
[null,"備考",null,"１　用紙の大きさは、日本産業規格Ａ列４とする。"]
[null,null,null,"２　この申込書は、利率見直し貸付けの場合に使用すること。"]
[null,null,null,"３　用途の欄は、「何小学校改築事業」のように具体的に記入することとし、同欄に"]
[null,null,null,"　記入できない場合には、「別紙のとおり」として別紙に記入のうえ添付しても差し"]
[null,null,null,"　支えない。"]
[null,null,null,"４　利率欄ただし書については、該当する空欄箇所に年月日を記入し、該当しない箇"]
[null,null,null,"　所には―線を記入する等、所要の調整を加えること。"]
[null,null,null,"５　元利金の支払方法中、「何」の箇所には、財務大臣が定める元利金の支払方法を"]
[null,null,null,"　記入すること。"]

{"sheet":"16.起債対象外事業費等確認調書","index":17,"n_rows":70,"n_cols":28,"rows_kept":70,"cut":false,"hidden":false,"merged":[[54,14,54,15],[54,19,54,21],[54,24,54,25],[0,1,0,27],[2,1,2,5],[2,6,2,10],[2,11,2,12],[2,14,2,15],[2,16,2,18],[2,19,2,25],[2,26,2,27],[5,1,5,6],[5,7,5,12],[5,13,5,18],[5,19,5,27],[6,1,14,1],[15,1,22,1],[25,1,26,11],[25,13,26,16],[26,18,26,22],[26,23,26,27],[27,2,28,8],[27,9,28,10],[27,11,28,11],[27,12,28,17],[27,18,28,22],[27,23,28,27],[29,12,29,17],[29,18,29,22],[29,23,29,27],[30,14,30,16],[30,19,30,21],[30,24,30,26],[31,2,39,2],[31,5,32,9],[31,11,32,11],[31,12,31,17],[31,19,31,21],[31,23,31,27],[32,12,32,17],[32,18,32,22],[32,23,32,27],[33,12,33,17],[33,18,33,22],[33,23,33,27],[34,12,34,17],[34,18,34,22],[34,23,34,27],[35,12,35,17],[35,18,35,22],[35,23,35,27],[36,6,36,10],[36,12,36,17],[36,18,36,22],[36,23,36,27],[37,6,37,10],[37,12,37,17],[37,18,37,22],[37,23,37,27],[38,8,38,10],[38,12,38,17],[38,18,38,22],[38,23,38,27],[39,8,39,10],[39,12,39,17],[39,18,39,22],[39,23,39,27],[40,8,40,10],[40,12,40,17],[40,18,40,22],[40,23,40,27],[41,9,41,10],[41,12,41,17],[41,18,41,22],[41,23,41,27],[43,12,43,17],[43,18,43,22],[43,23,43,27],[4,12,4,28],[48,8,48,10],[48,12,48,17],[48,18,48,22],[48,23,48,27],[49,9,49,10],[49,12,49,17],[49,18,49,22],[49,23,49,27],[44,5,45,9],[44,11,45,11],[44,12,44,17],[44,19,44,21],[44,23,44,27],[45,12,45,17],[45,18,45,22],[45,23,45,27],[46,6,46,10],[46,12,46,17],[46,18,46,22],[46,23,46,27],[47,8,47,10],[47,12,47,17],[47,18,47,22],[50,2,51,8],[50,9,51,10],[50,11,51,11],[50,12,51,17],[50,18,51,22],[50,23,51,27],[42,14,42,16],[42,19,42,21],[42,24,42,26],[43,5,43,7],[44,2,48,2],[47,23,47,27]]}
[null,"起債対象外事業費等に関する確認調書"]
[]
[null,"団体名",null,null,null,null,null,null,null,null,null,null,null,null,"年度",null,"事業名",null,null,null,null,null,null,null,null,null,"事業"]
[]
[null,"１．起債対象外事業費に係る確認態勢等について",null,null,null,null,null,null,null,null,null,null,"※担当者ＡとＡ’、担当者ＢとＢ’は別人格であることを確認の上、記入のこと。"]
[null,"確認項目",null,null,null,null,null,"作成者",null,null,null,null,null,"検証者",null,null,null,null,null,"検証資料"]
[null,"貸付対象事業費","実施事業費の確定",null,null,null,null,"□","事業課の担当者 Ａ",null,null,null,null,"□","事業課　　Ａ’",null,null,null,null,"□","契約書"]
[null,null,null,null,null,null,null,"□","財政担当課の担当者 Ｂ",null,null,null,null,"□","財政担当課　　Ｂ’",null,null,null,null,"□","その他（　　　　）"]
[null,null,null,null,null,null,null,"□","その他（　　　　　）"]
[null,null,"対象事業費の算出",null,null,null,null,"□","事業課の担当者 Ａ",null,null,null,null,"□","事業課　　Ａ’",null,null,null,null,"□","実施設計書"]
[null,null,"　対象外事業費の有無",null,null,null,null,"□","財政担当課の担当者 Ｂ",null,null,null,null,"□","財政担当課　　Ｂ’",null,null,null,null,"□","対象外事業費リスト"]
[null,null,null,"□","有","□","無","□","その他（　　　　　）",null,null,null,null,null,null,null,null,null,null,"□","その他（　　　　）"]
[null,null,"決算済事業費",null,null,null,null,"□","事業課の担当者 Ａ",null,null,null,null,"□","事業課　　Ａ’",null,null,null,null,"□","決算書"]
[null,null,null,null,null,null,null,"□","財政担当課の担当者 Ｂ",null,null,null,null,"□","財政担当課　　Ｂ’",null,null,null,null,"□","その他（　　　　）"]
[null,null,null,null,null,null,null,"□","その他（　　　　　）"]
[null,"控除財源等","補助金等",null,null,null,null,"□","事業課の担当者 Ａ",null,null,null,null,"□","事業課　　Ａ’",null,null,null,null,"□","補助事業等実績報告書"]
[null,null,null,null,null,null,null,"□","財政担当課の担当者 Ｂ",null,null,null,null,"□","財政担当課　　Ｂ’",null,null,null,null,"□","都道府県支出金の収納関係書類"]
[null,null,null,null,null,null,null,"□","その他（　　　　　）",null,null,null,null,null,null,null,null,null,null,"□","その他（　　　　）"]
[null,null,"寄付金・負担金・",null,null,null,null,"□","事業課の担当者 Ａ",null,null,null,null,"□","事業課　　Ａ’",null,null,null,null,"□","分担金等徴収簿"]
[null,null,"分担金等",null,null,null,null,"□","財政担当課の担当者 Ｂ",null,null,null,null,"□","財政担当課　　Ｂ’",null,null,null,null,"□","寄付金採納簿"]
[null,null,null,null,null,null,null,"□","その他（　　　　　）",null,null,null,null,null,null,null,null,null,null,"□","保険金等の収納関係書類"]
[null,null,null,null,null,null,null,null,null,null,null,null,null,null,null,null,null,null,null,"□","基金台帳"]
[null,null,null,null,null,null,null,null,null,null,null,null,null,null,null,null,null,null,null,"□","その他（　　　　）"]
[]
[null,"２．上記１．で「対象外事業費有」にチェックした場合のみ、以下に記入して下さい。",null,null,null,null,null,null,null,null,null,null,null,null,null,null,null,null,null,null,null,null,null,null,null,null,null,"（単位：千円）"]
[null,null,null,null,null,null,null,null,null,null,null,null,null,"実施事業費"]
[null,null,null,null,null,null,null,null,null,null,null,null,null,null,null,null,null,null,"うち補助対象事業費",null,null,null,null,"うち単独事業費"]
[null,null,"実施事業費計",null,null,null,null,null,null,"(B+O)",null,"Ａ",{"$f":"S28+X28","v":0},null,null,null,null,null,{"$f":"S30+S44","v":0},null,null,null,null,{"$f":"X30+X44","v":0}]
[]
[null,null,null,null,null,"実施事業費",null,null,null,null,null,"Ｂ",{"$f":"S30+X30","v":0}]
[null,null,null,null,null,null,"（うち事務費）",null,null,null,null,"Ｃ",null,"（",{"$f":"T31+Y31","v":0},null,null,"）","（",null,null,null,"）","（",null,null,null,"）"]
[null,null,"施設分",null,null,"起債対象外事業費",null,null,null,null,null,"Ｄ",null,null,null,null,null,null,"【",null,null,null,"】"]
[null,null,null,null,null,null,null,null,null,null,null,null,{"$f":"SUM(S33:AB33)","v":0},null,null,null,null,null,{"$f":"SUM(S34:W41)","v":0},null,null,null,null,{"$f":"SUM(X34:AB41)","v":0}]
[null,null,null,null,null,null,"一般的調査費",null,null,null,null,"Ｅ",{"$f":"S34+X34","v":0}]
[null,null,null,null,null,null,"維持管理費",null,null,null,null,"Ｆ",0]
[null,null,null,null,null,null,"解体撤去費等",null,null,null,null,"Ｇ",0]
[null,null,null,null,null,null,"備品等",null,null,null,null,"Ｈ",{"$f":"S37+X37","v":0}]
[null,null,null,null,null,null,"消火栓等",null,null,null,null,"Ｉ",0]
[null,null,null,null,null,null,"その他（",null,")",null,null,"Ｊ",0]
[null,null,null,null,null,null,"その他（",null,")",null,null,"Ｋ",{"$f":"S40+X40","v":0}]
[null,null,null,null,null,null,"その他（",null,")",null,null,"Ｌ",0]
[null,null,null,null,null,"起債対象事業費 ",null,null,null,"(B-D)",null,"Ｍ",{"$f":"M30-M33","v":0},null,null,null,null,null,{"$f":"S30-S33","v":0},null,null,null,null,{"$f":"X30-X33","v":0}]
[null,null,null,null,null,null,"（うち事務費）",null,null,null,null,"Ｎ",null,"（",null,null,null,"）","（",null,null,null,"）","（",null,null,null,"）"]
[null,null,null,null,null,"実施事業費",null,null,null,null,null,"Ｏ",{"$f":"S44+X44","v":0}]
[null,null,"用地分",null,null,"起債対象外事業費",null,null,null,null,null,"Ｐ",null,null,null,null,null,null,"【",null,null,null,"】"]
[null,null,null,null,null,null,null,null,null,null,null,null,{"$f":"SUM(S46:AB46)","v":0},null,null,null,null,null,{"$f":"SUM(S47:W49)","v":0},null,null,null,null,{"$f":"SUM(X47:AB49)","v":0}]
[null,null,null,null,null,null,"事業区域外用地",null,null,null,null,null,{"$f":"S47+X47","v":0}]
[null,null,null,null,null,null,"その他（",null,")",null,null,null,{"$f":"S48+X48","v":0}]
[null,null,null,null,null,null,"その他（",null,")",null,null,null,{"$f":"S49+X49","v":0}]
[null,null,null,null,null,"起債対象事業費",null,null,null,"(O-P)",null,"Ｑ",{"$f":"M44-M46","v":0},null,null,null,null,null,{"$f":"S44-S46","v":0},null,null,null,null,{"$f":"X44-X46","v":0}]
[null,null,"起債対象事業費計",null,null,null,null,null,null,"(M+Q)",null,"Ｒ",{"$f":"M42+M50","v":0},null,null,null,null,null,{"$f":"S42+S50","v":0},null,null,null,null,{"$f":"X42+X50","v":0}]
[]
[]
[null,null,null,"単独事業に係る事務費計算",null,null,null,null,null,null,null,null,null,"単独事業事務費（Ｎ）",null,null,null,null,"起債対象事業費（Ｍ－Ｎ）",null,null,null,null,null,"算入率"]
[null,null,null,null,null,null,null,null,null,null,null,null,null,"（",{"$f":"Y43","v":0},null,"）","÷","（",{"$f":"X42-Y43","v":0},null,null,"）","＝",{"$f":"IF(T55=0,\"\",O55/T55)","v":""},null,"％"]
[]
[]
[null,null,null,"注",null,"１．【　　】内には、起債対象外事業費に対応する国・都道府県補助金の額を記入する。"]
[null,null,null,null,null,"２．「一般的調査費」には基本設計、補助金の交付申請事務委託、地元調整、道路使用協議等も含む。"]
[null,null,null,null,null,"３．「備品等」とは対象外備品及び消耗品をいう。「対象外備品等」とは、原則として１品あたりの取得"]
[null,null,null,null,null,"　 原価が２０万円未満、または耐用年数が５年未満であるものをいう。"]
[null,null,null,null,null,"４． 用地分には、造成費、補償費、用地の取得に直接必要とする諸経費等を含む。"]
[null,null,null,null,null,"５． 臨時財政対策債の借入の場合は、添付不要"]
[]
[]
[]
[]
[]
[]
["□","■"]

{"sheet":"17.完成遅延理由書兼完成報告書","index":18,"n_rows":58,"n_cols":8,"rows_kept":58,"cut":false,"hidden":false,"merged":[[57,0,57,7],[32,2,32,7],[33,2,33,7],[35,1,35,4],[36,1,36,4],[39,4,40,7],[56,0,56,8],[29,1,29,4],[29,6,29,7],[13,0,13,7],[16,1,16,7],[18,2,19,7],[21,1,21,4],[22,1,22,4],[23,1,23,4],[24,1,24,4],[25,1,25,4],[25,5,25,7]]}
[]
[]
[]
[]
[null,null,null,null,null,null,null,"                  令和    年    月    日"]
[]
[null,null,"  北 陸 財 務 局 長    殿"]
[null,null,null,null,null,null,"          　　　　 （地方公共団体名）"]
[]
[null,null,null,null,null,null,"           　　　　（代表者の職氏名）"]
[]
[]
[]
["事業完成遅延理由書 兼 事業完成報告書"]
[]
[]
[null,"１. 事業完成遅延理由書 "]
[null,"　下記の理由により事業完成が遅延していますが、完成させる意思はありますので、完成見込での貸付けをお願いいたします。"]
[null,null,"　下記の理由により事業完成が遅延していますが、完成させる意思はありますので、完成見込での貸付けをお願いいたします。"]
[]
[]
[null,"事業名"]
[null,"借入予定額"]
[null,"事業契約年月日"]
[null,"完成見込年月日"]
[null,"事 業 完 成 遅 延 の 理 由"]
[]
[]
[]
[null,"２. 事業完成報告書 ",null,null,null,null,"報告日：令和　年　月　日"]
[null,"　下記のとおり事業が完成したので、報告いたします。"]
[]
[null,null,"　下記のとおり、事業が完成したので報告いたします。"]
[null,null,"　また、起債額に過充当が発生していないことも併せて報告いたします。"]
[]
[null,"借用証書記番号"]
[null,"事業完成日"]
[]
[]
[]
[]
[]
[]
[]
[]
[]
[]
[]
[]
[]
[]
[]
[]
[]
[]
[]
[]
[" "]

{"sheet":"21.特定納付利用届出","index":19,"n_rows":47,"n_cols":32,"rows_kept":47,"cut":false,"hidden":false,"merged":[[1,28,1,30],[23,0,23,32],[16,0,16,32],[13,22,13,31]]}
[]
[null,null,null,null,null,null,null,null,null,null,null,null,null,null,null,null,null,null,null,null,null,null,null,null,null,null,null,"第",null,null,null,"号"]
[null,null,null,null,null,null,null,null,null,null,null,null,null,null,null,null,null,null,null,null,null,null,null,null,null,null,null,"年",null,"月",null,"日"]
[]
[]
[null,"財　務　大　臣　　殿"]
[]
[]
[null,null,null,null,null,null,null,null,null,null,null,null,null,null,null,null,null,"（貸付先コード）"]
[null,null,null,null,null,null,null,null,null,null,null,null,null,null,null,null,null,"（地方公共団体名）"]
[null,null,null,null,null,null,null,null,null,null,null,null,null,null,null,null,null,"（代表者の職　氏名）"]
[]
[]
[]
[]
[]
[]
[]
[]
[]
[]
[]
[]
[]
[]
[]
[]
[]
[]
[]
[]
[]
[]
[]
[]
[]
[]
[]
[]
[]
[]
[]
[]
[]
[]
[]
[null,null,"備　考"]

{"sheet":"22.違約金免除","index":20,"n_rows":42,"n_cols":12,"rows_kept":42,"cut":false,"hidden":false,"merged":[[12,2,12,11],[27,4,28,4],[27,5,27,6],[27,3,28,3],[27,2,28,2],[27,7,27,11]]}
[]
[null,null,null,null,null,null,null,null,null,null,null,"第　　　　　　号"]
[]
[null,null,null,null,null,null,null,null,null,null,null,"年　　 月 　　日"]
[]
[null,"財務大臣　殿"]
[]
[null,null,null,null,null,null,null,null,"（地方公共団体名）"]
[]
[null,null,null,null,null,null,null,null,"（代表者の職　　 氏   名 ）"]
[]
[]
[null,null,"災害等に係る違約金免除承認申請書"]
[]
[]
[null,null,"　　年　月　日において支払を要する下記財政融資資金の元利金等　　　　　　円は、"]
[]
[null,null,"　　　　　　のために支払うことができなかったので、この延滞元利金等については、"]
[]
[null,null,"約定により違約金の支払をしないことを承認願いたく申請します。"]
[]
[null,null,"　おって、違約金の支払をしない期間については、延滞元金に借入れの利率を乗じて"]
[]
[null,null,"得た金額の延滞利子を支払います。"]
[]
[null,null,null,null,null,null,"記"]
[]
[null,null,"借　入年月日","借用証書の記番号","資金名","借　入　額",null,"年　月　日期日における支払所要額"]
[null,null,null,null,null,"当　初","現　在","元　金","利　子","補償金","加算金","計"]
[null,null,null,"第号",null,"円","円","円","円","円","円","円"]
[]
[]
[]
[]
[]
[]
[]
[]
[null,null,"備考"]
[null,null,"１　用紙の大きさは、日本産業規格Ａ列４とする。"]
[null,null,"２　補償金又は加算金を支払う必要がないものについては、「補償金」又は「加算金」の欄を"]
[null,null,"　設けないことができる。"]

{"sheet":"23.取得財産等","index":21,"n_rows":23,"n_cols":4,"rows_kept":23,"cut":false,"hidden":false,"merged":[[1,0,1,3],[20,1,20,3],[21,2,21,3]]}
[null,null,null,"団体名："]
["　　　取　得　財　産　等　に　関　す　る　資　料"]
[]
["事業名（用　途）"]
["資　金　年　度"]
["借入年月日"]
["借用証書番号"]
["償　還　期　限"]
["当初借入額"]
["借入現在額"]
["既　償　還　額"]
["取得財産等に係る\n総事業費(総起債額）"]
["取得財産等に係る\n数量（全体）","㎡\n式","㎡\n式","㎡\n式"]
["処分対象財産の名称"]
["処分対象財産に係る\n数量","㎡\n式","㎡\n式","㎡\n式"]
["処分対象財産の取得価格\n事業費（起債額）"]
["処分対象財産に係る\n借入現在額（算出根拠）"]
["耐用年数（経過年数）","　　　　　　年（　　　　　年）","　　　　　　年（　　　　　年）","　　　　　　年（　　　　　年）"]
["処　分　時　期","　　　　　　　　　　　　年","　　　　　月　　　　　　　　日"]
["処分の態様","　　撤　　去　・　売　　買　・　","その他　（","　　　　　）"]
["処分の理由及び\n処分のてん末"]
["国庫補助金及び\n承認状況","有　　・　　無\n","補助金適正化法に係る承認　　　　　　　　省所管\n文書（　　年　　月　　日）　口頭（　　年　　月　　日）"]
["参考事項等　　\n*添付図面等"]

{"sheet":"24.処分行為報告書","index":22,"n_rows":28,"n_cols":11,"rows_kept":28,"cut":false,"hidden":false,"merged":[[23,7,23,10],[24,7,24,10],[25,7,25,10],[21,7,21,10],[8,1,8,11],[10,2,10,10],[14,2,14,4],[12,1,12,11],[22,7,22,10],[27,1,27,11],[14,7,14,10],[15,7,15,10],[16,7,16,10],[20,7,20,10],[22,1,24,2],[25,2,25,4],[15,2,15,4],[16,2,16,4],[17,2,17,4],[18,2,18,4],[19,2,19,4],[20,2,20,4],[21,2,21,4],[18,7,18,8],[19,7,19,8]]}
[]
[null,null,null,null,null,null,null,null,null,null,"第　　　　　　号"]
[null,null,null,null,null,null,null,null,null,null,"年　　 月 　　日"]
[null,"財務大臣　殿"]
[]
[null,null,null,null,null,null,null,null,"（地方公共団体の長　　 氏   名 ）"]
[]
[]
[null,"補助金等適正化法第２２条の規定に基づく各省各庁の長\nの承認を受けた施設等における財政融資資金地方資金に\n係る取得財産等の処分行為報告書"]
[]
[null,null,"　標記のことについて、下記のとおり処分行為を行いますので報告します｡\n　なお、この報告書提出後に国庫負担等の処分行為承認基準に適合しないことが\n判明した場合等には、速やかに報告します。"]
[]
[null,"記"]
[]
[null,null,"処分実施予定日"]
[null,null,"主務官庁に対する報告年月日"]
[null,null,"借入年月日"]
[null,null,"借用証書の記番号",null,null,null,null,"第",null,"号"]
[null,null,"当初借入額",null,null,null,null,null,null,"円"]
[null,null,"借入現在額",null,null,null,null,null,null,"円"]
[null,null,"償還期限"]
[null,null,"取得財産等"]
[null," 取 得 財 産\n 等 の 処 分\n 行 　　　　　為　　　",null,null,"処分対象財産等"]
[null,null,null,null,"処分の態様"]
[null,null,null,null,"処分の理由及び　　　処分のてん末"]
[null,null,"その他参考事項"]
[]
[null,"備考\n１．用紙の大きさは、日本産業規格Ａ列４とする。\n２．この報告書は、当該国庫負担等の主務官庁から補助金等に係る予算の執行の適正化に関する法律（昭和三\n　　十年法律第百七十九号）第２２条の規定による承認又は同法第７条第３項の規定により付された間接補助\n　　条件に基づく財産処分の承認を受けるにあたり、報告により承認したものとみなされるものに限り使用す\n　　るものとする｡\n３．間接補助事業等の場合、主務官庁とあるのを補助事業者等と読み替えること。\n４．処分の態様には、譲渡、貸し付け、その他処分の態様に応じて記入すること｡\n５．処分の理由及び処分のてん末は詳細に記入すること｡\n６．国庫負担等の主務官庁に対し提出した報告書（添付資料を除く｡）の写しを添付すること｡"]

{"sheet":"25.処分行為承認申請書","index":23,"n_rows":30,"n_cols":10,"rows_kept":30,"cut":false,"hidden":false,"merged":[[10,2,10,9],[8,2,8,9],[18,6,18,8],[19,6,19,9],[20,6,20,9],[12,1,12,9],[14,2,14,3],[15,2,15,3],[16,2,16,3],[17,2,17,3],[18,2,18,3],[19,2,19,3],[14,6,14,8],[16,6,16,7],[17,6,17,7],[29,3,29,9],[20,1,22,2],[23,2,23,3],[27,3,27,9],[28,3,28,9],[23,6,23,9],[21,6,21,9],[22,6,22,9]]}
[]
[null,null,null,null,null,null,null,null,null,"第　　　　　　号"]
[null,null,null,null,null,null,null,null,null,"　 年　　 月 　　日"]
[]
[null,"財務大臣　殿"]
[]
[null,null,null,null,null,null,null,"（地方公共団体の長　　 氏   名 ）"]
[]
[null,null,"財政融資資金に係る取得財産等の処分行為承認申請書"]
[]
[null,null,"標記のことについて、下記のとおり処分行為を承認願いたく申請します。"]
[]
[null,"記"]
[]
[null,null,"借入年月日"]
[null,null,"借用証書の記番号",null,null,null,"第",null,"号"]
[null,null,"当初借入額",null,null,null,null,null,"円"]
[null,null,"借入現在額",null,null,null,null,null,"円"]
[null,null,"償還期限"]
[null,null,"取得財産等"]
[null,"取得財産等の処分行為",null,"処分対象財産等"]
[null,null,null,"処分の態様"]
[null,null,null,"処分の理由及び　　　処分のてん末"]
[null,null,"その他参考事項"]
[]
[null,"備　考"]
[null,null,1,"　用紙の大きさは、日本産業規格Ａ列４とする。"]
[null,null,2,"　当該財産について補助金等の交付を受けている場合は、補助金等に係る予算執行の適正化に関する法律第２２条による関係省庁の承認の有無をその他参考事項の欄に記入すること。"]
[null,null,3,"　処分の態様の欄には、撤去、改築、用途変更、譲渡、貸付け、その他処分の態様に応じて記入すること。"]
[null,null,4,"　処分の理由及び処分のてん末は詳細に記入すること。"]

{"sheet":"26.国庫支出金等交付決定申出書","index":24,"n_rows":31,"n_cols":15,"rows_kept":31,"cut":false,"hidden":false,"merged":[[13,9,13,10],[13,13,13,14],[12,9,12,14],[24,9,24,11],[6,1,6,15],[8,1,8,15],[10,1,10,14],[20,4,20,6],[21,4,21,6],[14,4,14,6],[15,4,15,6],[12,2,12,6],[13,2,13,6],[16,3,19,4],[14,1,21,2],[22,1,24,2],[25,9,25,14],[22,9,22,14],[23,9,23,14],[22,4,22,6],[23,4,23,6],[24,4,24,6],[25,2,25,6]]}
[null,null,null,null,null,null,null,null,null,null,null,null,null,null,"第　　　　　号"]
[]
[null,null,null,null,null,null,null,null,null,null,null,null,null,null,"年　　月　　日"]
[]
[null,null,null,null,null,null,null,null,null,"（地方公共団体の長　　 氏　 名 ）"]
[]
[null,"国庫支出金等交付決定申出書"]
[]
[null,"　財政融資資金を借入れた事業について、当初見込んでいた国庫支出金等に変更が生じたので申し出ます。"]
[]
[null,"記"]
[]
[null,null,"事業名"]
[null,null,"事業の財源内訳",null,null,null,null,null,null,"当初",null,null,null,"変更後"]
[null,null,null,null,"国庫支出金",null,null,null,null,null,"円",null,null,null,"円"]
[null,null,null,null,"その他特定財源",null,null,null,null,null,"円",null,null,null,"円"]
[null,null,null,"起債",null,null,"財政融資資金",null,null,null,"円",null,null,null,"円"]
[null,null,null,null,null,null,"地方公共団体金融\n機構資金",null,null,null,"円",null,null,null,"円"]
[null,null,null,null,null,null,"市場公募",null,null,null,"円",null,null,null,"円"]
[null,null,null,null,null,null,"銀行等引受",null,null,null,"円",null,null,null,"円"]
[null,null,null,null,"一般財源",null,null,null,null,null,"円",null,null,null,"円"]
[null,null,null,null,"合計",null,null,null,null,null,"円",null,null,null,"円"]
[null,"（参考）",null,null,"財政融資資金\n当初借入年月日"]
[null,null,null,null,"借用証書の記番号",null,null,null,null,"第○○○○○号"]
[null,null,null,null,"財政融資資金\n借入現在額",null,null,null,null,null,null,null,null,"円"]
[null,null,"その他参考事項"]
[]
[null,"備　考"]
[null,null,1,null,"用紙の大きさは、日本産業規格Ａ列４とする。"]
[null,null,2,null,"国庫支出金等に変更が生じた場合は、上記項目に記入し速やかに申し出ること。"]
[null,null,3,null,"変更した事業費の内容がわかる書類を添付すること。"]

{"sheet":"27.過充当報告書・申出書","index":25,"n_rows":32,"n_cols":20,"rows_kept":32,"cut":false,"hidden":false,"merged":[[17,5,17,8],[16,7,16,8],[8,2,8,9],[10,2,10,9],[12,1,12,9],[14,5,14,9],[15,5,15,9],[18,5,18,8],[19,2,19,4],[19,6,19,9],[20,5,20,9],[27,6,27,9],[26,1,26,5],[26,6,26,9],[27,1,27,5],[21,1,25,2],[21,3,22,5],[21,6,21,9],[23,4,23,5],[24,4,24,5],[25,4,25,5],[28,1,28,4],[28,5,28,9],[36,3,36,9],[29,1,29,4],[29,5,29,9],[31,1,31,4],[31,5,31,9],[34,3,34,9],[35,3,35,9]]}
[]
[null,null,null,null,null,null,null,null,null,"第　　　　　　号"]
[null,null,null,null,null,null,null,null,null,"　 年　　 月 　　日"]
[]
[null,"北陸財務局長　殿"]
[]
[null,null,null,null,null,null,null,"（地方公共団体の長　　 氏   名 ）"]
[]
[null,null,"財政融資資金に係る過充当報告書",null,null,null,null,null,null,null,null,null,"財政融資資金に係る過充当報告書","財政融資資金に係る過充当申出書"]
[]
[null,null,{"$f":"IF(\nC9=\"財政融資資金に係る過充当報告書\",\n\"　標記のことについて、下記のとおり過充当を報告します。\n　なお、報告内容に誤認等があり、強制繰上償還等を求められた場合はご指示のとおり対応します。\",\nIF(\nC9=\"財政融資資金に係る過充当申出書\",\n\"　標記のことについて、下記のとおり過充当を申し出ます。\n　なお、申出内容に誤認等があり、強制繰上償還等を求められた場合はご指示のとおり対応します。\"))","v":"　標記のことについて、下記のとおり過充当を報告します。\n　なお、報告内容に誤認等があり、強制繰上償還等を求められた場合はご指示のとおり対応します。"}]
[]
[null,"記"]
[]
[null,null,"用途名"]
[null,null,"借入年月日"]
[null,null,"借用証書の記番号",null,null,null,"第",null,null,"号"]
[null,null,"当初借入額",null,null,null,null,null,null,"円"]
[null,null,"借入現在額",null,null,null,null,null,null,"円"]
[null,null,"国庫補助金の有無\n及び状況等",null,null,null,null,null,null,null,null,null,"有","無"]
[null,null,"事業名"]
[null,"過充当額の算定",null,"起債対象事業費",null,null,"　　　　　　　　　　　　財源内訳　　　　　　　　（円）"]
[null,null,null,null,null,null,"起債（本債）","国庫補助金","一般財源","その他",null,null,"起債（本債）","その他の起債","国庫補助金","負担金","分担金","災害復旧の受益者負担金","一般財源","その他"]
[null,null,null,"借入申込時"]
[null,null,null,"事業完成時"]
[null,null,null,null,"過充当額"]
[null,"過充当原因"]
[null,"発生時期",null,null,null,null,null,null,null,null,null,null,"【過充当の理由】","【発生時期】"]
[null,"詳細理由",null,null,null,null,null,null,null,null,null,null,"事務ミス","借入申込前"]
[null,"その他参考事項",null,null,null,null,null,null,null,null,null,null,"事業費の減額","借入申込日～借入日前"]
[null,null,null,null,null,null,null,null,null,null,null,null,"財源内訳の変更","借入日以降"]
[null,"当局摘要欄",null,null,null,null,null,null,null,null,null,null,"その他"]

{"sheet":"28.補償金条項追加","index":26,"n_rows":28,"n_cols":6,"rows_kept":28,"cut":false,"hidden":false,"merged":[[25,3,25,5],[26,3,26,5],[27,2,27,5],[19,1,19,5],[20,1,20,5],[21,3,21,5],[22,3,22,5],[23,3,23,5],[24,3,24,5],[13,1,13,5],[14,1,14,5],[15,1,15,5],[16,2,17,2],[16,3,17,3],[16,4,16,5],[12,1,12,5],[5,1,5,5],[6,1,6,5],[7,1,7,5],[8,1,8,5],[9,1,9,5],[10,1,10,5],[11,1,11,5],[0,1,0,5],[1,1,1,5],[2,1,2,5],[3,1,3,5],[4,1,4,5]]}
[null,"第　　　　　号"]
[null,"年　　月　　日"]
[]
[null,"財 務 大 臣　　殿"]
[]
[null,"地方公共団体の長"]
[null,"氏　　　名"]
[]
[null,"財政融資資金普通地方長期資金等借用証書補償金条項追加承認申請書"]
[]
[null,"　財政融資資金普通地方長期資金等借用証書について、下記のとおり特約条項を追加したいので、"]
[null,"承認願いたく申請します。"]
[]
[null,"記"]
[]
[null,"１．補償金に関する特約条項を追加したい借用証書"]
[null,null,"借入年月日","借用証書記番号","備　　考"]
[null,null,null,null,"繰上償還予定日","予定金額"]
[]
[]
[null,"２．特約条項を次のとおりとする。"]
[null,null,"変更前","変更後"]
[null,null,"第３条　乙は、この借入金の全\n　部又は一部の額について、甲\n　の承認を得て繰上償還をする\n　ことができるものとする。","第３条　乙は、この借入金の全部又は一部の額について、甲の\n　承認を得て繰上償還をすることができるものとする。この場\n　合において、甲は、乙から繰上償還の申し出があり、当該繰\n　上償還に必要な補償金の支払が繰上償還と同時に確実に行わ\n　れる見込みがあると認めるときに限り、繰上償還の承認をす\n　るものとする。\n２　前項に規定する補償金は、次のイに掲げる額がロに掲げる\n　額を超える場合に必要なものとし、その額は、当該超過額\n（甲が送付する同一の財政融資資金貸付金繰上償還承認通知書\n（以下この項において「承認通知書」という。）に２以上の記\n　番号が異なる借用証書（以下この項において「異なる借用証\n　書」という。）があるときは、異なる借用証書ごとに計算し\n　たイに掲げる額の合計額がロに掲げる額の合計額を超える場\n　合における当該超過額）とするものとする。\n　イ　各支払期日ごとに計算した次の額の合計額　繰上償還前\n　　の財政融資資金貸付金償還年次表に当該支払期日の元利金\n　　の償還所要額として記載された額から、承認通知書に添付\n　　される繰上償還後の財政融資資金貸付金償還年次表に当該\n　　支払期日の元利金の償還所要額として記載された額を控除\n　　した額に、当該支払期日と繰上償還日との期間に最も近い\n　　残存期間を有する国債の利回りを勘案して甲が定める割引\n　　率を乗じた額\n　ロ　この借入金に係る繰上償還額"]
[null,null,null,"第４条第１項(6) この借入金により取得した財産の全部若しく\n　は一部を処分し、又はこの借入金に係る事業に関し補助金等\n　の交付を受けた場合"]
[null,null,"第６条中「利子の支払」\n　　　　「利子の金額」","第６条中「利子若しくは補償金の支払」\n　　　　「利子若しくは補償金の金額」"]
[null,null,"第７条第１項中「利子又は」\n　　　第２項中「利子の支払」","第７条第１項中「利子、補償金又は」\n　　　第２項中「利子又は補償金の支払」"]
[null,null,null,"第１０条第２項　乙は、この借入金により取得した財産の全部\n　若しくは一部を処分できる見込みがあるとき又はこの借入金\n　に係る事業に関し補助金等の交付の決定があったときには、\n　甲に遅滞なくその旨を申し出るものとする。"]
[null,null,"備考　１．用紙の大きさは、日本産業規格Ａ列４とする。\n　　　２．備考欄には、繰上償還予定日及び予定金額等を記載すること。"]

{"sheet":"29.繰上償還承認申請","index":27,"n_rows":39,"n_cols":10,"rows_kept":39,"cut":false,"hidden":false,"merged":[[38,3,38,9],[13,1,13,9],[16,1,16,9],[19,1,19,9],[34,3,34,9],[36,3,36,9],[28,1,28,9],[23,2,23,3],[24,2,25,3],[30,3,30,9],[32,3,32,9],[24,1,25,1],[24,4,25,4],[24,8,25,8],[24,9,25,9]]}
[]
[null,null,null,null,null,null,null,null,null,"第  　　　　  号"]
[null,null,null,null,null,null,null,null,null,"年　　 月 　　日"]
[]
[]
[null,"　　財務大臣　　殿"]
[]
[null,null,null,null,null,null,null,"地方公共団体の長　"]
[null,null,null,null,null,null,null,"　　氏　　名"]
[]
[]
[]
[]
[null,"財政融資資金借入金繰上償還承認申請書"]
[]
[]
[null,"　財政融資資金借入金について、下記のとおり繰上償還をしたいので、承認願いたく申請します。\n　なお、下記の繰上償還日に借用証書で定めるところにより計算した補償金を支払います。"]
[]
[]
[null,"記"]
[]
[null,"１　繰上償還額及び繰上償還日等"]
[]
[null,"貸付け  の種類","借  入  年月日",null,"借用証書記 番 号","当  初  借入額","借  入  現在額","繰  上  償還額","繰  上  償還日","備考"]
[null,null,null,null,null,"円","円","円"]
[]
[]
[null,"２　繰上償還の理由"]
[]
[]
[null,"　備考",1,"　用紙の大きさは、日本産業規格Ａ列４とする。"]
[]
[null,null,2,"「貸付けの種類」の欄には、本省資金にあっては、長期資金又は短期資金の別を、地方資金にあっては、地方長期資金等又は地方短期資金の別を記入すること。"]
[]
[null,null,3,"「借入現在額」の欄には、申請日現在の借入現在額を記入すること。"]
[]
[null,null,4,"　備考欄には、繰上償還の方法等を記入すること。"]
[]
[null,null,5,"　繰上償還には、財政投融資特別会計の財政融資資金勘定に帰属した貸付金も含まれるものとする。"]

{"sheet":"30.指定店変更","index":28,"n_rows":36,"n_cols":11,"rows_kept":36,"cut":false,"hidden":false,"merged":[[15,1,15,10],[33,4,33,10],[17,1,17,10],[12,1,12,10],[20,4,20,10],[27,1,27,5],[22,7,22,8],[31,4,31,10],[35,4,35,10],[26,1,26,5],[28,1,28,5],[31,1,31,2],[29,1,29,5]]}
[]
[null,null,null,null,null,null,null,null,null,null,"第            号"]
[null,null,null,null,null,null,null,null,null,null,"年　　 月 　　日"]
[]
[]
[null,null,"財務大臣  殿"]
[]
[null,null,null,null,null,null,null,null,"（地方公共団体名）"]
[null,null,null,null,null,null,null,null,"（代表者の職　　 氏   名 ）"]
[]
[]
[]
[null,"財政融資資金指定店変更承認申請書"]
[]
[]
[null,"  財政融資資金の授受に係る指定店を日本銀行「　何　」店から日本銀行「　何　」店に変更したいので、承認願いたく申請します。"]
[]
[null,"記"]
[]
[null,1,null,"指定店を変更する理由"]
[]
[]
[null,2,null,"変更を希望する年月日",null,null,null,"　　　　年    月    日"]
[]
[null,3,null,"財政融資資金借入金の明細"]
[]
[null,"貸付けの種類",null,null,null,null,"借入年月日","借用証書の  記  番  号","当初借入額","借入現在額","備  考"]
[null,null,null,null,null,null,null,null,"円","円"]
[]
[]
[]
[null,"備考",null,1,"  用紙の大きさは、日本産業規格Ａ列４とする。"]
[]
[null,null,null,2,"  「財政融資資金借入金の明細」には、借入現在額の全部の額について、\n 借用証書の記番号別に記入すること。ただし、日本銀行統轄店の変更を\n 伴わない指定店の変更又は変更前の日本銀行統轄店が借用証書等を保管\n していない場合は、「財政融資資金借入金の明細」の記入は要しない。"]
[]
[null,null,null,3,"  「貸付けの種類」の欄には、地方長期資金等又は地方短期資金の別を\n 記入すること。"]

{"sheet":"31.債務承継申請","index":29,"n_rows":43,"n_cols":12,"rows_kept":43,"cut":false,"hidden":false,"merged":[[25,2,25,11],[36,1,36,12],[42,4,42,11],[41,4,41,11],[39,4,39,11],[40,4,40,11],[38,1,38,2],[27,1,27,12],[31,1,31,12],[35,1,35,12],[17,1,17,12],[15,2,15,11],[12,1,12,11],[21,1,21,2],[23,1,23,2],[21,3,21,4],[23,3,23,4],[22,3,22,4],[22,1,22,2],[21,11,21,12],[22,11,22,12],[23,11,23,12]]}
[]
[null,null,null,null,null,null,null,null,null,null,null,"第  　　　　  号"]
[null,null,null,null,null,null,null,null,null,null,null,"　　 年　　 月 　　日"]
[null,null,"財務大臣  殿"]
[]
[null,null,null,null,null,null,null,null,"（旧地方公共団体名）"]
[null,null,null,null,null,null,null,null,"（代表者の職   　氏　名 ）"]
[]
[null,null,null,null,null,null,null,null,"（新地方公共団体名）"]
[null,null,null,null,null,null,null,null,"（代表者の職   　氏　名 ）"]
[]
[]
[null,"財政融資資金債務承継承認申請書"]
[]
[]
[null,null,"　下記の財政融資資金について、債務引受により債務の承継をすることとしたいので、承認願いたく申請します。\n　なお、本債務承継に係る債券（買入依頼書によるものを除く。）を財政融資資金が所有する間は、財務大臣から随時調査を受け、又は報告を徴されても異存ありません。"]
[]
[null,"記"]
[]
[null,1,"債務の承継をしようとする額の明細"]
[]
[null,"運用の\n方　法",null,"運用の\n種　類",null,"運　用\n年月日","旧借用証書記番号\n又は有価証券の\n銘柄及び回記号","当　初\n運用額","未償還\n現在額","新借用証書記番号\n又は有価証券の新\n銘柄及び新回記号","債　務\n承継額","備考"]
[null,null,null,null,null,null,null,"円","円",null,"円"]
[]
[]
[null,2,"債務承継額が証書貸付であって長期資金又は普通地方長期資金等の一口の一部の額である場合における債務承継後の元利金の支払方法"]
[]
[null," 「　何　」の方法によるものとし、各支払期日における元利金の額は、財務大臣から別途送付される財政融資資金貸付金償還年次表によるものとする。"]
[]
[null,3,"債務引受の理由等"]
[]
[]
[]
[null,4,"添付書類"]
[]
[null,"・債務引受に係る契約書等の写し"]
[]
[]
[null,"備考",null,1,"  用紙の大きさは、日本産業規格Ａ列４とする。"]
[null,null,null,2,"  ｢運用の方法」の欄には、証書貸付又は有価証券の応募、引受け若しくは買入れの別を記入すること。"]
[null,null,null,3,"  ｢運用の種類｣の欄には、本省資金にあっては、長期資金又は短期資金の別を、地方資金にあっては、地方長期資金等又は地方短期資金の別をそれぞれ記入すること。"]
[null,null,null,4,"  元利金の支払方法中「何」の箇所には、財務大臣が定める元利金の支払方法を記入すること。"]
[null,null,null,5,"　債務承継には、財政投融資特別会計の財政融資資金勘定に帰属した貸付金も含まれるものとする。"]

{"sheet":"32①.債務承継通知（甲）","index":30,"n_rows":38,"n_cols":12,"rows_kept":38,"cut":false,"hidden":false,"merged":[[34,4,34,11],[12,0,12,13],[37,4,37,11],[35,4,35,11],[36,4,36,11],[31,4,31,11],[32,4,32,11],[33,4,33,11],[15,2,15,11],[21,1,21,2],[23,1,23,2],[25,2,25,12],[17,1,17,12],[30,4,30,11],[30,1,30,2],[27,2,27,12],[21,3,21,4],[22,3,22,4],[22,1,22,2],[23,3,23,4],[22,11,22,12],[23,11,23,12],[21,11,21,12]]}
[]
[null,null,null,null,null,null,null,null,null,null,null,"第            号"]
[null,null,null,null,null,null,null,null,null,null,null,"年　　 月 　　日"]
[]
[]
[null,null,"財務大臣  殿"]
[]
[]
[null,null,null,null,null,null,null,null,"（新地方公共団体名）"]
[null,null,null,null,null,null,null,null,"（代表者の職　　 氏   名 ）"]
[]
[]
["　財 政 融 資 資 金 債 務 承 継 通 知 書"]
[]
[]
[null,null,"　「旧法人等又は旧地方公共団体名」に係る下記の財政融資資金について、「何」により　　年　　月　　日付でその債務を承継したので通知します。\n　なお、本債務承継に係る債券（買入依頼書によるものを除く。）を財政融資資金が所有する間は、財務大臣から随時調査を受け、又は報告を徴されても異存ありません。"]
[]
[null,"記"]
[]
[null,1,"債務承継額の明細"]
[]
[null,"運用の方　法",null,"運用の種　類",null,"運　用\n年月日","借用証書記番号又は有価証券の銘柄及び回記号","当　初\n運用額","未償還\n現在額","新借用証書記番号又は有価証券の新銘柄及び新回記号","債  務\n承継額","備考"]
[null,null,null,null,null,null,null,"円","円",null,"円"]
[]
[]
[null,2,"債務承継額が証書貸付であって長期資金又は普通地方長期資金等の一口の一部の額である場合における債務承継後の元利金の支払方法"]
[]
[null,null,"  「何」の方法によるものとし、各支払期日における元利金の額は、財務大臣から別途送付される財政融資資金貸付金償還年次表によるものとする。"]
[]
[]
[null,"備考",null,1,"  用紙の大きさは、日本産業規格Ａ列４とする。"]
[null,null,null,2,"  この通知書は、財政融資資金の管理及び運用の手続に関する規則（昭和49年大蔵省令第42号）第11条第1項第1号、第11条の2第1項第1号又は第39条第1項第1号の規定により提出する場合に使用すること。"]
[null,null,null,3,"  本文中｢何」の箇所には、債務承継の原因となった事項（例えば地方自治法第６条に規定する配置分合等）を記入すること。"]
[null,null,null,4,"  ｢運用の方法」の欄には、証書貸付又は有価証券の応募、引受け若しくは買入れの別を記入すること。"]
[null,null,null,5,"  ｢運用の種類｣の欄には、本省資金にあっては、長期資金又は短期資金の別を、地方資金にあっては地方長期資金等又は地方短期資金の別をそれぞれ記入すること。"]
[null,null,null,6,"  ｢債務承継額」が「未償還現在額」の一部の額である場合には、備考欄に「一部承継」と記入すること。"]
[null,null,null,7,"  元利金の支払方法中「何」の箇所には、財務大臣が定める元利金の支払方法を記入すること。"]
[null,null,null,8,"  債務承継には、財政投融資特別会計の財政融資資金勘定に帰属した貸付金も含まれるものとする。"]

{"sheet":"32②.債務承継通知（乙）","index":31,"n_rows":38,"n_cols":12,"rows_kept":38,"cut":false,"hidden":false,"merged":[[12,0,12,13],[15,2,15,11],[17,1,17,12],[21,1,21,2],[21,3,21,4],[21,11,21,12],[32,4,32,11],[22,1,22,2],[22,3,22,4],[22,11,22,12],[23,1,23,2],[23,3,23,4],[23,11,23,12],[25,2,25,12],[30,1,30,2],[30,4,30,11],[31,4,31,11],[27,2,27,12],[33,4,33,11],[34,4,34,11],[35,4,35,11],[36,4,36,11],[37,4,37,11]]}
[]
[null,null,null,null,null,null,null,null,null,null,null,"第  　　　　  号"]
[null,null,null,null,null,null,null,null,null,null,null,"　　 年　　 月 　　日"]
[null,null,"財務大臣  殿"]
[]
[null,null,null,null,null,null,null,null,"（旧地方公共団体名）"]
[null,null,null,null,null,null,null,null,"（代表者の職   　氏　名 ）"]
[]
[null,null,null,null,null,null,null,null,"（新地方公共団体名）"]
[null,null,null,null,null,null,null,null,"（代表者の職   　氏　名 ）"]
[]
[]
["　財 政 融 資 資 金 債 務 承 継 通 知 書"]
[]
[]
[null,null,"　下記の財政融資資金について、「何」により、  年  月  日付でその債務を承継したので通知します。\n　なお、本債務承継に係る債券（買入依頼書によるものを除く。）を財政融資資金が所有する間は、財務大臣から随時調査を受け、又は報告を徴されても異存ありません。"]
[]
[null,"記"]
[]
[null,1,"債務承継額の明細"]
[]
[null,"運用の方　法",null,"運用の種　類",null,"運　用\n年月日","借用証書記番号又は有価証券の銘柄及び回記号","当　初\n運用額","未償還\n現在額","新借用証書記番号又は有価証券の新銘柄及び新回記号","債  務\n承継額","備考"]
[null,null,null,null,null,null,null,"円","円",null,"円"]
[]
[]
[null,2,"債務承継額が証書貸付であって長期資金又は普通地方長期資金等の一口の一部の額である場合における債務承継後の元利金の支払方法"]
[]
[null,null," 「何」の方法によるものとし、各支払期日における元利金の額は、財務大臣から別途送付される財政融資資金貸付金償還年次表によるものとする。"]
[]
[]
[null,"備考",null,1,"  用紙の大きさは、日本産業規格Ａ列４とする。"]
[null,null,null,2,"  この通知書は、財政融資資金の管理及び運用の手続に関する規則（昭和49年大蔵省令第42号）第11条第1項第2号、第11条の2第1項第2号又は第39条第1項第2号の規定により提出する場合に使用すること。"]
[null,null,null,3,"  本文中｢何」の箇所には、債務承継の原因となった事項（例えば地方自治法第６条に規定する配置分合のため事業を移譲したこと等）を記入すること。"]
[null,null,null,4,"  ｢運用の方法」の欄には、証書貸付又は有価証券の応募、引受け若しくは買入れの別を記入すること。"]
[null,null,null,5,"  ｢運用の種類｣の欄には、本省資金にあっては、長期資金又は短期資金の別を、地方資金にあっては普通地方長期資金等、起債前貸等又は地方短期資金の別をそれぞれ記入すること。"]
[null,null,null,6,"  ｢債務承継額」が「未償還現在額」の一部の額である場合には、備考欄に「一部承継」と記入すること。"]
[null,null,null,7,"  元利金の支払方法中「何」の箇所には、財務大臣が定める元利金の支払方法を記入すること。"]
[null,null,null,8,"  債務承継には、財政投融資特別会計の財政融資資金勘定に帰属した貸付金も含まれるものとする。"]